Workbook

Sheet Data Entry
B1: First time: Use the practice data provided to see how the program works. When you run the practice data, follow the steps 4 - 7 below.
B4: Step 1: Use the button above to clear the input data fields, then enter your loan data in these cells.
B5: Loans | C5: 1 | D5: 2 | E5: 3 | F5: 4 | G5: 5 | H5: 6 | I5: 7 | J5: 8 | K5: 9 | L5: 10 | M5: 11 | N5: 12 | O5: 13 | P5: 14 | Q5: 15 | R5: 16 | S5: 17 | T5: 18 | U5: 19 | V5: 20 | W5: 21 | X5: 22 | Y5: 23 | Z5: 24 | AA5: 25 | AB5: 26 | AC5: 27 | AD5: 28 | AE5: 29 | AF5: 30 | AG5: 31 | AH5: 32 | AI5: 33 | AJ5: 34 | AK5: 35 | AL5: 36 | AM5: 37 | AN5: 38 | AO5: 39 | AP5: 40 | AQ5: 41 | AR5: 42 | AS5: 43 | AT5: 44 | AU5: 45 | AV5: 46 | AW5: 47 | AX5: 48 | AY5: 49 | AZ5: 50 | BA5: 51 | BB5: 52 | BC5: 53 | BD5: 54 | BE5: 55 | BF5: 56 | BG5: 57 | BH5: 58 | BI5: 59 | BJ5: 60
B6: Name Of Loan Use button above to enter additional loan data. | C6: Kwik Trip Credit Card | D6: George's Chase Credit Card | E6: Advance From Helen's Parents | F6: Helen's Macey's Credit Card | G6: American Express Credit Card | H6: Helen's Beauford Loan | I6: Auto Loan with GM | J6: M&I Bank Loan | K6: Helen's Stafford #1 | L6: Helen's Stafford #2 | M6: Advance From Uncle George's Retirement Account | N6: Home Improvement Loan | O6: George's Stafford #2 | P6: George's Sofi Refinance | Q6: Helen's Staford #3 | R6: Loan from Helen's Uncle Fred | S6: Personal loan form George's uncle | T6: George's Stafford #1 | U6: Advance From George's Parents | V6: Loan From George's Brother
B7: Current Balance | C7: 4000 | D7: 12000 | E7: 2000 | F7: 15000 | G7: 30000 | H7: 12500 | I7: 8000 | J7: 10000 | K7: 15000 | L7: 11000 | M7: 8500 | N7: 3000 | O7: 17000 | P7: 25000 | Q7: 22000 | R7: 7000 | S7: 1200 | T7: 20000 | U7: 16500 | V7: 3500
B8: Annual Rate | C8: 0.25 | D8: 0.2 | E8: 0.15 | F8: 0.125 | G8: 0.12 | H8: 0.105 | I8: 0.1 | J8: 0.09 | K8: 0.085 | L8: 0.08 | M8: 0.075 | N8: 0.07 | O8: 0.065 | P8: 0.065 | Q8: 0.065 | R8: 0.06 | S8: 0.06 | T8: 0.055 | U8: 0.047 | V8: 0.034
B9: Current Minimum Pmt | C9: 117.4 | D9: 250 | E9: 50 | F9: 250 | G9: 150 | H9: 150 | I9: 66.67 | J9: 200 | K9: 106.25 | L9: 223 | M9: 170 | N9: 100 | O9: 80 | P9: 100 | Q9: 100 | R9: 35 | S9: 20 | T9: 100 | U9: 90 | V9: 20
B10: Current Interest Pmt | C10: =IF(AND(StartBalance1>0,AnnualRate1>0,MinPmt1>=0),StartBalance1*AnnualRate1/12,0) -> 83.33333333 | D10: =IF(AND(StartBalance2>0,AnnualRate2>0,MinPmt2>=0),StartBalance2*AnnualRate2/12,0) -> 200 | E10: =IF(AND(StartBalance3>0,AnnualRate3>0,MinPmt3>=0),StartBalance3*AnnualRate3/12,0) -> 25 | F10: =IF(AND(StartBalance4>0,AnnualRate4>0,MinPmt4>=0),StartBalance4*AnnualRate4/12,"") -> 156.25 | G10: =IF(AND(StartBalance5>0,AnnualRate5>0,MinPmt5>=0),StartBalance5*AnnualRate5/12,0) -> 300 | H10: =IF(AND(StartBalance6>0,AnnualRate6>0,MinPmt6>=0),StartBalance6*AnnualRate6/12,0) -> 109.375 | I10: =IF(AND(StartBalance7>0,AnnualRate7>0,MinPmt7>=0),StartBalance7*AnnualRate7/12,0) -> 66.66666667 | J10: =IF(AND(StartBalance8>0,AnnualRate8>0,MinPmt8>=0),StartBalance8*AnnualRate8/12,0) -> 75 | K10: =IF(AND(StartBalance9>0,AnnualRate9>0,MinPmt9>=0),StartBalance9*AnnualRate9/12,0) -> 106.25 | L10: =IF(AND(StartBalance10>0,AnnualRate10>0,MinPmt10>=0),StartBalance10*AnnualRate10/12,0) -> 73.33333333 | M10: =IF(AND(StartBalance11>0,AnnualRate11>0,MinPmt11>=0),StartBalance11*AnnualRate11/12,0) -> 53.125 | N10: =IF(AND(StartBalance12>0,AnnualRate12>0,MinPmt12>=0),StartBalance12*AnnualRate12/12,0) -> 17.5 | O10: =IF(AND(StartBalance13>0,AnnualRate13>0,MinPmt13>=0),StartBalance13*AnnualRate13/12,0) -> 92.08333333 | P10: =IF(AND(StartBalance14>0,AnnualRate14>0,MinPmt14>=0),StartBalance14*AnnualRate14/12,0) -> 135.4166667 | Q10: =IF(AND(StartBalance15>0,AnnualRate15>0,MinPmt15>=0),StartBalance15*AnnualRate15/12,0) -> 119.1666667 | R10: =IF(AND(StartBalance16>0,AnnualRate16>0,MinPmt16>=0),StartBalance16*AnnualRate16/12,0) -> 35 | S10: =IF(AND(StartBalance17>0,AnnualRate17>0,MinPmt17>=0),StartBalance17*AnnualRate17/12,0) -> 6 | T10: =IF(AND(StartBalance18>0,AnnualRate18>0,MinPmt18>=0),StartBalance18*AnnualRate18/12,0) -> 91.66666667 | U10: =IF(AND(StartBalance19>0,AnnualRate19>0,MinPmt19>=0),StartBalance19*AnnualRate19/12,0) -> 64.625 | V10: =IF(AND(StartBalance20>0,AnnualRate20>0,MinPmt20>=0),StartBalance20*AnnualRate20/12,0) -> 9.916666667 | W10: =IF(AND(StartBalance21>0,AnnualRate21>0,MinPmt21>=0),StartBalance21*AnnualRate21/12,0) -> 0 | X10: =IF(AND(StartBalance22>0,AnnualRate22>0,MinPmt22>=0),StartBalance22*AnnualRate22/12,0) -> 0 | Y10: =IF(AND(StartBalance23>0,AnnualRate23>0,MinPmt23>=0),StartBalance23*AnnualRate23/12,0) -> 0 | Z10: =IF(AND(StartBalance24>0,AnnualRate24>0,MinPmt24>=0),StartBalance24*AnnualRate24/12,0) -> 0 | AA10: =IF(AND(StartBalance25>0,AnnualRate25>0,MinPmt25>=0),StartBalance25*AnnualRate25/12,0) -> 0 | AB10: =IF(AND(StartBalance26>0,AnnualRate26>0,MinPmt26>=0),StartBalance26*AnnualRate26/12,0) -> 0 | AC10: =IF(AND(StartBalance27>0,AnnualRate27>0,MinPmt27>=0),StartBalance27*AnnualRate27/12,0) -> 0 | AD10: =IF(AND(StartBalance28>0,AnnualRate28>0,MinPmt28>=0),StartBalance28*AnnualRate28/12,0) -> 0 | AE10: =IF(AND(StartBalance29>0,AnnualRate29>0,MinPmt29>=0),StartBalance29*AnnualRate29/12,0) -> 0 | AF10: =IF(AND(StartBalance30>0,AnnualRate30>0,MinPmt30>=0),StartBalance30*AnnualRate30/12,0) -> 0 | AG10: =IF(AND(StartBalance31>0,AnnualRate31>0,MinPmt31>=0),StartBalance31*AnnualRate31/12,0) -> 0 | AH10: =IF(AND(StartBalance32>0,AnnualRate32>0,MinPmt32>=0),StartBalance32*AnnualRate32/12,0) -> 0 | AI10: =IF(AND(StartBalance33>0,AnnualRate33>0,MinPmt33>=0),StartBalance33*AnnualRate33/12,0) -> 0 | AJ10: =IF(AND(StartBalance34>0,AnnualRate34>0,MinPmt34>=0),StartBalance34*AnnualRate34/12,0) -> 0 | AK10: =IF(AND(StartBalance35>0,AnnualRate35>0,MinPmt35>=0),StartBalance35*AnnualRate35/12,0) -> 0 | AL10: =IF(AND(StartBalance36>0,AnnualRate36>0,MinPmt36>=0),StartBalance36*AnnualRate36/12,0) -> 0 | AM10: =IF(AND(StartBalance37>0,AnnualRate37>0,MinPmt37>=0),StartBalance37*AnnualRate37/12,0) -> 0 | AN10: =IF(AND(StartBalance38>0,AnnualRate38>0,MinPmt38>=0),StartBalance38*AnnualRate38/12,0) -> 0 | AO10: =IF(AND(StartBalance39>0,AnnualRate39>0,MinPmt39>=0),StartBalance39*AnnualRate39/12,0) -> 0 | AP10: =IF(AND(StartBalance40>0,AnnualRate40>0,MinPmt40>=0),StartBalance40*AnnualRate40/12,0) -> 0 | AQ10: =IF(AND(StartBalance41>0,AnnualRate41>0,MinPmt41>=0),StartBalance41*AnnualRate41/12,0) -> 0 | AR10: =IF(AND(StartBalance42>0,AnnualRate42>0,MinPmt42>=0),StartBalance42*AnnualRate42/12,0) -> 0 | AS10: =IF(AND(StartBalance43>0,AnnualRate43>0,MinPmt43>=0),StartBalance43*AnnualRate43/12,0) -> 0 | AT10: =IF(AND(StartBalance44>0,AnnualRate44>0,MinPmt44>=0),StartBalance44*AnnualRate44/12,0) -> 0 | AU10: =IF(AND(StartBalance45>0,AnnualRate45>0,MinPmt45>=0),StartBalance45*AnnualRate45/12,0) -> 0 | AV10: =IF(AND(StartBalance46>0,AnnualRate46>0,MinPmt46>=0),StartBalance46*AnnualRate46/12,0) -> 0 | AW10: =IF(AND(StartBalance47>0,AnnualRate47>0,MinPmt47>=0),StartBalance47*AnnualRate47/12,0) -> 0 | AX10: =IF(AND(StartBalance48>0,AnnualRate48>0,MinPmt48>=0),StartBalance48*AnnualRate48/12,0) -> 0 | AY10: =IF(AND(StartBalance49>0,AnnualRate49>0,MinPmt49>=0),StartBalance49*AnnualRate49/12,0) -> 0 | AZ10: =IF(AND(StartBalance50>0,AnnualRate50>0,MinPmt50>=0),StartBalance50*AnnualRate50/12,0) -> 0 | BA10: =IF(AND(StartBalance51>0,AnnualRate51>0,MinPmt51>=0),StartBalance51*AnnualRate51/12,0) -> 0 | BB10: =IF(AND(StartBalance52>0,AnnualRate52>0,MinPmt52>=0),StartBalance52*AnnualRate52/12,0) -> 0 | BC10: =IF(AND(StartBalance53>0,AnnualRate53>0,MinPmt53>=0),StartBalance53*AnnualRate53/12,0) -> 0 | BD10: =IF(AND(StartBalance54>0,AnnualRate54>0,MinPmt54>=0),StartBalance54*AnnualRate54/12,0) -> 0 | BE10: =IF(AND(StartBalance55>0,AnnualRate55>0,MinPmt55>=0),StartBalance55*AnnualRate55/12,0) -> 0 | BF10: =IF(AND(StartBalance56>0,AnnualRate56>0,MinPmt56>=0),StartBalance56*AnnualRate56/12,0) -> 0 | BG10: =IF(AND(StartBalance57>0,AnnualRate57>0,MinPmt57>=0),StartBalance57*AnnualRate57/12,0) -> 0 | BH10: =IF(AND(StartBalance58>0,AnnualRate58>0,MinPmt58>=0),StartBalance58*AnnualRate58/12,0) -> 0 | BI10: =IF(AND(StartBalance59>0,AnnualRate59>0,MinPmt59>=0),StartBalance59*AnnualRate59/12,0) -> 0 | BJ10: =IF(AND(StartBalance60>0,AnnualRate60>0,MinPmt60>=0),StartBalance60*AnnualRate60/12,0) -> 0
B11: Change to 'TRUE" if Mimimum Pmt is Interest Only | C11: FALSE | D11: FALSE | E11: FALSE | F11: FALSE | G11: FALSE | H11: FALSE | I11: TRUE | J11: FALSE | K11: TRUE | L11: FALSE | M11: FALSE | N11: FALSE | O11: FALSE | P11: FALSE | Q11: FALSE | R11: TRUE | S11: FALSE | T11: FALSE | U11: FALSE | V11: FALSE | W11: FALSE | X11: FALSE | Y11: FALSE | Z11: FALSE | AA11: FALSE | AB11: FALSE | AC11: FALSE | AD11: FALSE | AE11: FALSE | AF11: FALSE | AG11: FALSE | AH11: FALSE | AI11: FALSE | AJ11: FALSE | AK11: FALSE | AL11: FALSE | AM11: FALSE | AN11: FALSE | AO11: FALSE | AP11: FALSE | AQ11: FALSE | AR11: FALSE | AS11: FALSE | AT11: FALSE | AU11: FALSE | AV11: FALSE | AW11: FALSE | AX11: FALSE | AY11: FALSE | AZ11: FALSE | BA11: FALSE | BB11: FALSE | BC11: FALSE | BD11: FALSE | BE11: FALSE | BF11: FALSE | BG11: FALSE | BH11: FALSE | BI11: FALSE | BJ11: FALSE
B12: Total of the Minimum Pmts | C12: =SUM(C9:BJ9) -> 2378.32
B13: Total Current Interest Pmts | C13: =SUM(C10:BJ10) -> 1819.708333
B14: Total Debt | C14: =SUM(C7:BJ7) -> 243200
B16: Step 2: Enter the total amount you can afford to pay now.
B17: Amount | C17: 3000
B18: Initial Excess | C18: =MaxTotalPmt1-TotalMinPmts -> 621.68
B20: Step 3: If you can afford to pay more later, enter these amounts and the months the new payments will start below.
B21: If you do not wish to speculate about what you can afford to pay in the future leave these cells blank.
C22: Amount | D22: Start Month
B23: First New Total Pmt Amount
B24: Second New Total Pmt Amount
B26: Step 4: Click the button to Analyze Your Data.
B28: Step 5: Open the 'Comparisons' sheet to view payoff times for each loan, and to evaluate comparisons in runs where you have changed the initial data set.
B29: Each time you run a data set, you can view the payments for the best approach by opening the 'PMT Data' sheet.
B31: Step 6: If this is your first time with the practice data:
C32: a. In order to see the total interest associated with each payoff option, look at the 'Interest By Approach' sheet.
C33: b. To see a complete set of payments for the best payoff option for each run look at the 'PMT Data' sheet.
C34: c. To see how comparisons related to baseline are made, change some of the minimum payments or some of
D35: the total payment values and click the 'Analyze Your Data' button. When asked, be sure to indicate that
D36: these runs are not baseline runs. On the comparison sheet hover over the cells in the 'changes as comments'
D37: column to see the record of the changes you have made.
C38: d. To make new comparisons against the same baseline click the 'Restore Your Baseline Data' button and repeat step c above.
B40: Step 7: You are done with the practice data. Get the list of all of your loans with the interest rate, the current balance, and the minimum payment for each loan.
C41: be sure to click the 'Help' button beside the 'Current Minimum Payment' column and read the explanation. Go to step 1 and follow
C42: instructions.
B44: © Humbert G Sullivan 2020

Sheet Comparisons
A1: 1 | B1: 2 | C1: 3 | D1: 4 | E1: 5 | F1: 6 | G1: 7 | H1: 8 | I1: 9 | J1: 10 | K1: 11 | L1: 12 | M1: 13 | N1: 14 | O1: 15 | P1: 16 | Q1: 17 | R1: 18 | S1: 19
F2: Payoff Methods
F3: Excess is the total pmt net of the minimum payments.
F4: The Debt Blaster will analyze what will happen to your loans when you apply the monthly excess in each of the following ways:
G5: 1. To the active loan with the highest rate. This has been called the Avalanche Method.
G6: 2. To the active loan with the smallest balance. This has been called the Snowball Method.
G7: 3. To the active loan with the largest balance
G8: 4. Proportional to the magnitued of each active loan's rate.
G9: 5. To the active loan with the largest interest pmt.
G10: 6. Proportional to the magnitued of of each active loans interest pmt.
G11: 7. Equally among active loans.
G12: 8. According to the size of the initial balances of active loans -- largest to smallest.
G13: 9. According to the size of the initial balances of active loans -- smallest to largest. Also called the Snowball Method.
F14: Change in Interest | G14: Changes as Comment | H14: Initial Total Pmt | I14: 2nd Total Pmt | J14: Start Mo. For 2nd Total Pmt | K14: 3rd Total Pmt | L14: Start Mo. For 3rd Total Pmt | M14: Best Payoff Option/s | N14: Total Interest Pmt for best Payoff option | O14: Years to Payoff All Loans | P14: Years to Payoff Loan 1 | Q14: Years to Payoff Loan 2 | R14: Years to Payoff Loan 3 | S14: Years to Payoff Loan 4 | T14: Years to Payoff Loan 5 | U14: Years to Payoff Loan 6 | V14: Years to Payoff Loan 7 | W14: Years to Payoff Loan 8 | X14: Years to Payoff Loan 9 | Y14: Years to Payoff Loan 10 | Z14: Years to Payoff Loan 11 | AA14: Years to Payoff Loan 12 | AB14: Years to Payoff Loan 13 | AC14: Years to Payoff Loan 14 | AD14: Years to Payoff Loan 15 | AE14: Years to Payoff Loan 16 | AF14: Years to Payoff Loan 17 | AG14: Years to Payoff Loan 18 | AH14: Years to Payoff Loan 19 | AI14: Years to Payoff Loan 20 | AJ14: Years to Payoff Loan 21 | AK14: Years to Payoff Loan 22 | AL14: Years to Payoff Loan 23 | AM14: Years to Payoff Loan 24 | AN14: Years to Payoff Loan 25 | AO14: Years to Payoff Loan 26 | AP14: Years to Payoff Loan 27 | AQ14: Years to Payoff Loan 28 | AR14: Years to Payoff Loan 29 | AS14: Years to Payoff Loan 30 | AT14: Years to Payoff Loan 31 | AU14: Years to Payoff Loan 32 | AV14: Years to Payoff Loan 33 | AW14: Years to Payoff Loan 34 | AX14: Years to Payoff Loan 35 | AY14: Years to Payoff Loan 36 | AZ14: Years to Payoff Loan 37 | BA14: Years to Payoff Loan 38 | BB14: Years to Payoff Loan 39 | BC14: Years to Payoff Loan 40 | BD14: Years to Payoff Loan 41 | BE14: Years to Payoff Loan 42 | BF14: Years to Payoff Loan 43 | BG14: Years to Payoff Loan 44 | BH14: Years to Payoff Loan 45 | BI14: Years to Payoff Loan 46 | BJ14: Years to Payoff Loan 47 | BK14: Years to Payoff Loan 48 | BL14: Years to Payoff Loan 49 | BM14: Years to Payoff Loan 50 | BN14: Years to Payoff Loan 51 | BO14: Years to Payoff Loan 52 | BP14: Years to Payoff Loan 53 | BQ14: Years to Payoff Loan 54 | BR14: Years to Payoff Loan 55 | BS14: Years to Payoff Loan 56 | BT14: Years to Payoff Loan 57 | BU14: Years to Payoff Loan 58 | BV14: Years to Payoff Loan 59 | BW14: Years to Payoff Loan 60
E15: Baseline
F16: =IF(H16<>"",-BaselineInt+N16,"") -> 
F48: =IF(H48<>"",-BaselineInt+N48,"") -> 
F80: =IF(H80<>"",-BaselineInt+N80,"") -> 
F112: =IF(H112<>"",-BaselineInt+N112,"") -> 

Sheet Test (hidden)
D1: Trial Set Of Practice Data To Be Sure Everything Works Correctly
G2: Balance | I2: Rate | K2: Pmt
A3: In order of initial size from smallest to largers. | D3: 1 | E3: 10000 | G3: 10000 | I3: 0.255 | K3: =ROUND(G3*(I3/12),2) -> 212.5
D4: 2 | E4: =E3-125.5 -> 9874.5 | G4: 9874.5 | I4: =I3-0.004 -> 0.251 | K4: =ROUND(G4*(I4/12),2) -> 206.54
D5: 3 | E5: =E4-125.5 -> 9749 | G5: 9749 | I5: =I4-0.004 -> 0.247 | K5: 200.67
D6: 4 | E6: 9623.5 | G6: 9623.5 | I6: 0.243 | K6: 194.88
D7: 5 | E7: 9498 | G7: 9498 | I7: 0.239 | K7: 189.17
D8: 6 | E8: 9372.5 | G8: 9372.5 | I8: 0.235 | K8: 183.54
D9: 7 | E9: 9247 | G9: 9247 | I9: 0.231 | K9: 178
D10: 8 | E10: 9121.5 | G10: 9121.5 | I10: 0.227 | K10: 172.55
D11: 9 | E11: 8996 | G11: 8996 | I11: 0.223 | K11: 167.18
D12: 10 | E12: 8870.5 | G12: 8870.5 | I12: 0.219 | K12: 161.89
D13: 11 | E13: 8745 | G13: 8745 | I13: 0.215 | K13: 156.68
D14: 12 | E14: 8619.5 | G14: 8619.5 | I14: 0.211 | K14: 151.56
D15: 13 | E15: 8494 | G15: 8494 | I15: 0.207 | K15: 146.52
D16: 14 | E16: 8368.5 | G16: 8368.5 | I16: 0.203 | K16: 141.57
D17: 15 | E17: 8243 | G17: 8243 | I17: 0.199 | K17: 136.7
D18: 16 | E18: 8117.5 | G18: 8117.5 | I18: 0.195 | K18: 131.91
D19: 17 | E19: 7992 | G19: 7992 | I19: 0.191 | K19: 127.21
D20: 18 | E20: 7866.5 | G20: 7866.5 | I20: 0.187 | K20: 122.59
D21: 19 | E21: 7741 | G21: 7741 | I21: 0.183 | K21: 118.05
D22: 20 | E22: 7615.5 | G22: 7615.5 | I22: 0.179 | K22: 113.6
D23: 21 | E23: 7490 | G23: 7490 | I23: 0.175 | K23: 109.23
D24: 22 | E24: 7364.5 | G24: 7364.5 | I24: 0.171 | K24: 104.94
D25: 23 | E25: 7239 | G25: 7239 | I25: 0.167 | K25: 100.74
D26: 24 | E26: 7113.5 | G26: 7113.5 | I26: 0.163 | K26: 96.63
D27: 25 | E27: 6988 | G27: 6988 | I27: 0.159 | K27: 92.59
D28: 26 | E28: 6862.5 | G28: 6862.5 | I28: 0.155 | K28: 88.64
D29: 27 | E29: 6737 | G29: 6737 | I29: 0.151 | K29: 84.77
D30: 28 | E30: 6611.5 | G30: 6611.5 | I30: 0.147 | K30: 80.99
D31: 29 | E31: 6486 | G31: 6486 | I31: 0.143 | K31: 77.29
D32: 30 | E32: 6360.5 | G32: 6360.5 | I32: 0.139 | K32: 73.68
D33: 31 | E33: 6235 | G33: 6235 | I33: 0.135 | K33: 70.14
D34: 32 | E34: 6109.5 | G34: 6109.5 | I34: 0.131 | K34: 66.7
D35: 33 | E35: 5984 | G35: 5984 | I35: 0.127 | K35: 63.33
D36: 34 | E36: 5858.5 | G36: 5858.5 | I36: 0.123 | K36: 60.05
D37: 35 | E37: 5733 | G37: 5733 | I37: 0.119 | K37: 56.85
D38: 36 | E38: 5607.5 | G38: 5607.5 | I38: 0.115 | K38: 53.74
D39: 37 | E39: 5482 | G39: 5482 | I39: 0.111 | K39: 50.71
D40: 38 | E40: 5356.5 | G40: 5356.5 | I40: 0.107 | K40: 47.76
D41: 39 | E41: 5231 | G41: 5231 | I41: 0.103 | K41: 44.9
D42: 40 | E42: 5105.5 | G42: 5105.5 | I42: 0.099 | K42: 42.12
D43: 41 | E43: 4980 | G43: 4980 | I43: 0.095 | K43: 39.42
D44: 42 | E44: 4854.5 | G44: 4854.5 | I44: 0.091 | K44: 36.81
D45: 43 | E45: 4729 | G45: 4729 | I45: 0.087 | K45: 34.29
D46: 44 | E46: 4603.5 | G46: 4603.5 | I46: 0.083 | K46: 31.84
D47: 45 | E47: 4478 | G47: 4478 | I47: 0.079 | K47: 29.48
D48: 46 | E48: 4352.5 | G48: 4352.5 | I48: 0.075 | K48: 27.2
D49: 47 | E49: 4227 | G49: 4227 | I49: 0.071 | K49: 25.01
D50: 48 | E50: 4101.5 | G50: 4101.5 | I50: 0.067 | K50: 22.9
D51: 49 | E51: 3976 | G51: 3976 | I51: 0.063 | K51: 20.87
D52: 50 | E52: 3850.5 | G52: 3850.5 | I52: 0.059 | K52: 18.93
D53: 51 | E53: 3725 | G53: 3725 | I53: 0.055 | K53: 17.07
D54: 52 | E54: 3599.5 | G54: 3599.5 | I54: 0.051 | K54: 15.3
D55: 53 | E55: 3474 | G55: 3474 | I55: 0.047 | K55: 13.61
D56: 54 | E56: 3348.5 | G56: 3348.5 | I56: 0.043 | K56: 12
D57: 55 | E57: 3223 | G57: 3223 | I57: 0.039 | K57: 10.47
D58: 56 | E58: 3097.5 | G58: 3097.5 | I58: 0.035 | K58: 9.03
D59: 57 | E59: 2972 | G59: 2972 | I59: 0.031 | K59: 7.68
D60: 58 | E60: 2846.5 | G60: 2846.5 | I60: 0.027 | K60: 6.4
D61: 59 | E61: 2721 | G61: 2721 | I61: 0.023 | K61: 5.22
D62: 60 | E62: 2595.5 | G62: 2595.5 | I62: 0.019 | K62: 4.11

Sheet Interest Data By Approach

Sheet PMT Data
A1: Months | B1: Loan 1 | C1: Loan 2 | D1: Loan 3 | E1: Loan 4 | F1: Loan 5 | G1: Loan 6 | H1: Loan 7 | I1: Loan 8 | J1: Loan 9 | K1: Loan 10 | L1: Loan 11 | M1: Loan 12 | N1: Loan 13 | O1: Loan 14 | P1: Loan 15 | Q1: Loan 16 | R1: Loan 17 | S1: Loan 18 | T1: Loan 19 | U1: Loan 20 | V1: Total
A2: 1 | B2: 739.08 | C2: 250 | D2: 50 | E2: 250 | F2: 150 | G2: 150 | H2: 66.67 | I2: 200 | J2: 106.25 | K2: 223 | L2: 170 | M2: 100 | N2: 80 | O2: 100 | P2: 100 | Q2: 35 | R2: 20 | S2: 100 | T2: 90 | U2: 20 | V2: =U2 + T2 + S2 + R2 + Q2 + P2 + O2 + N2 + M2 + L2 + K2 + J2 + I2 + H2 + G2 + F2 + E2 + D2 + C2 + B2 -> 3000
A3: 2 | B3: 739.08 | C3: 250 | D3: 50 | E3: 250 | F3: 150 | G3: 150 | H3: 66.67 | I3: 200 | J3: 106.25 | K3: 223 | L3: 170 | M3: 100 | N3: 80 | O3: 100 | P3: 100 | Q3: 35 | R3: 20 | S3: 100 | T3: 90 | U3: 20 | V3: 3000
A4: 3 | B4: 739.08 | C4: 250 | D4: 50 | E4: 250 | F4: 150 | G4: 150 | H4: 66.67 | I4: 200 | J4: 106.25 | K4: 223 | L4: 170 | M4: 100 | N4: 80 | O4: 100 | P4: 100 | Q4: 35 | R4: 20 | S4: 100 | T4: 90 | U4: 20 | V4: 3000
A5: 4 | B5: 739.08 | C5: 250 | D5: 50 | E5: 250 | F5: 150 | G5: 150 | H5: 66.67 | I5: 200 | J5: 106.25 | K5: 223 | L5: 170 | M5: 100 | N5: 80 | O5: 100 | P5: 100 | Q5: 35 | R5: 20 | S5: 100 | T5: 90 | U5: 20 | V5: 3000
A6: 5 | B6: 739.08 | C6: 250 | D6: 50 | E6: 250 | F6: 150 | G6: 150 | H6: 66.67 | I6: 200 | J6: 106.25 | K6: 223 | L6: 170 | M6: 100 | N6: 80 | O6: 100 | P6: 100 | Q6: 35 | R6: 20 | S6: 100 | T6: 90 | U6: 20 | V6: 3000
A7: 6 | B7: 593.9 | C7: 395.18 | D7: 50 | E7: 250 | F7: 150 | G7: 150 | H7: 66.67 | I7: 200 | J7: 106.25 | K7: 223 | L7: 170 | M7: 100 | N7: 80 | O7: 100 | P7: 100 | Q7: 35 | R7: 20 | S7: 100 | T7: 90 | U7: 20 | V7: 3000
A8: 7 | B8: 0 | C8: 989.08 | D8: 50 | E8: 250 | F8: 150 | G8: 150 | H8: 66.67 | I8: 200 | J8: 106.25 | K8: 223 | L8: 170 | M8: 100 | N8: 80 | O8: 100 | P8: 100 | Q8: 35 | R8: 20 | S8: 100 | T8: 90 | U8: 20 | V8: 3000
A9: 8 | B9: 0 | C9: 989.08 | D9: 50 | E9: 250 | F9: 150 | G9: 150 | H9: 66.67 | I9: 200 | J9: 106.25 | K9: 223 | L9: 170 | M9: 100 | N9: 80 | O9: 100 | P9: 100 | Q9: 35 | R9: 20 | S9: 100 | T9: 90 | U9: 20 | V9: 3000
A10: 9 | B10: 0 | C10: 989.08 | D10: 50 | E10: 250 | F10: 150 | G10: 150 | H10: 66.67 | I10: 200 | J10: 106.25 | K10: 223 | L10: 170 | M10: 100 | N10: 80 | O10: 100 | P10: 100 | Q10: 35 | R10: 20 | S10: 100 | T10: 90 | U10: 20 | V10: 3000
A11: 10 | B11: 0 | C11: 989.08 | D11: 50 | E11: 250 | F11: 150 | G11: 150 | H11: 66.67 | I11: 200 | J11: 106.25 | K11: 223 | L11: 170 | M11: 100 | N11: 80 | O11: 100 | P11: 100 | Q11: 35 | R11: 20 | S11: 100 | T11: 90 | U11: 20 | V11: 3000
A12: 11 | B12: 0 | C12: 989.08 | D12: 50 | E12: 250 | F12: 150 | G12: 150 | H12: 66.67 | I12: 200 | J12: 106.25 | K12: 223 | L12: 170 | M12: 100 | N12: 80 | O12: 100 | P12: 100 | Q12: 35 | R12: 20 | S12: 100 | T12: 90 | U12: 20 | V12: 3000
A13: 12 | B13: 0 | C13: 989.08 | D13: 50 | E13: 250 | F13: 150 | G13: 150 | H13: 66.67 | I13: 200 | J13: 106.25 | K13: 223 | L13: 170 | M13: 100 | N13: 80 | O13: 100 | P13: 100 | Q13: 35 | R13: 20 | S13: 100 | T13: 90 | U13: 20 | V13: 3000
A14: 13 | B14: 0 | C14: 989.08 | D14: 50 | E14: 250 | F14: 150 | G14: 150 | H14: 66.67 | I14: 200 | J14: 106.25 | K14: 223 | L14: 170 | M14: 100 | N14: 80 | O14: 100 | P14: 100 | Q14: 35 | R14: 20 | S14: 100 | T14: 90 | U14: 20 | V14: 3000
A15: 14 | B15: 0 | C15: 989.08 | D15: 50 | E15: 250 | F15: 150 | G15: 150 | H15: 66.67 | I15: 200 | J15: 106.25 | K15: 223 | L15: 170 | M15: 100 | N15: 80 | O15: 100 | P15: 100 | Q15: 35 | R15: 20 | S15: 100 | T15: 90 | U15: 20 | V15: 3000
A16: 15 | B16: 0 | C16: 989.08 | D16: 50 | E16: 250 | F16: 150 | G16: 150 | H16: 66.67 | I16: 200 | J16: 106.25 | K16: 223 | L16: 170 | M16: 100 | N16: 80 | O16: 100 | P16: 100 | Q16: 35 | R16: 20 | S16: 100 | T16: 90 | U16: 20 | V16: 3000
A17: 16 | B17: 0 | C17: 989.08 | D17: 50 | E17: 250 | F17: 150 | G17: 150 | H17: 66.67 | I17: 200 | J17: 106.25 | K17: 223 | L17: 170 | M17: 100 | N17: 80 | O17: 100 | P17: 100 | Q17: 35 | R17: 20 | S17: 100 | T17: 90 | U17: 20 | V17: 3000
A18: 17 | B18: 0 | C18: 989.08 | D18: 50 | E18: 250 | F18: 150 | G18: 150 | H18: 66.67 | I18: 200 | J18: 106.25 | K18: 223 | L18: 170 | M18: 100 | N18: 80 | O18: 100 | P18: 100 | Q18: 35 | R18: 20 | S18: 100 | T18: 90 | U18: 20 | V18: 3000
A19: 18 | B19: 0 | C19: 989.08 | D19: 50 | E19: 250 | F19: 150 | G19: 150 | H19: 66.67 | I19: 200 | J19: 106.25 | K19: 223 | L19: 170 | M19: 100 | N19: 80 | O19: 100 | P19: 100 | Q19: 35 | R19: 20 | S19: 100 | T19: 90 | U19: 20 | V19: 3000
A20: 19 | B20: 0 | C20: 989.08 | D20: 50 | E20: 250 | F20: 150 | G20: 150 | H20: 66.67 | I20: 200 | J20: 106.25 | K20: 223 | L20: 170 | M20: 100 | N20: 80 | O20: 100 | P20: 100 | Q20: 35 | R20: 20 | S20: 100 | T20: 90 | U20: 20 | V20: 3000
A21: 20 | B21: 0 | C21: 84.42 | D21: 954.66 | E21: 250 | F21: 150 | G21: 150 | H21: 66.67 | I21: 200 | J21: 106.25 | K21: 223 | L21: 170 | M21: 100 | N21: 80 | O21: 100 | P21: 100 | Q21: 35 | R21: 20 | S21: 100 | T21: 90 | U21: 20 | V21: 3000
A22: 21 | B22: 0 | C22: 0 | D22: 537.91 | E22: 751.17 | F22: 150 | G22: 150 | H22: 66.67 | I22: 200 | J22: 106.25 | K22: 223 | L22: 170 | M22: 100 | N22: 80 | O22: 100 | P22: 100 | Q22: 35 | R22: 20 | S22: 100 | T22: 90 | U22: 20 | V22: 3000
A23: 22 | B23: 0 | C23: 0 | D23: 0 | E23: 1289.08 | F23: 150 | G23: 150 | H23: 66.67 | I23: 200 | J23: 106.25 | K23: 223 | L23: 170 | M23: 100 | N23: 80 | O23: 100 | P23: 100 | Q23: 35 | R23: 20 | S23: 100 | T23: 90 | U23: 20 | V23: 3000
A24: 23 | B24: 0 | C24: 0 | D24: 0 | E24: 1289.08 | F24: 150 | G24: 150 | H24: 66.67 | I24: 200 | J24: 106.25 | K24: 223 | L24: 170 | M24: 100 | N24: 80 | O24: 100 | P24: 100 | Q24: 35 | R24: 20 | S24: 100 | T24: 90 | U24: 20 | V24: 3000
A25: 24 | B25: 0 | C25: 0 | D25: 0 | E25: 1289.08 | F25: 150 | G25: 150 | H25: 66.67 | I25: 200 | J25: 106.25 | K25: 223 | L25: 170 | M25: 100 | N25: 80 | O25: 100 | P25: 100 | Q25: 35 | R25: 20 | S25: 100 | T25: 90 | U25: 20 | V25: 3000
A26: 25 | B26: 0 | C26: 0 | D26: 0 | E26: 1289.08 | F26: 150 | G26: 150 | H26: 66.67 | I26: 200 | J26: 106.25 | K26: 223 | L26: 170 | M26: 100 | N26: 80 | O26: 100 | P26: 100 | Q26: 35 | R26: 20 | S26: 100 | T26: 90 | U26: 20 | V26: 3000
A27: 26 | B27: 0 | C27: 0 | D27: 0 | E27: 1289.08 | F27: 150 | G27: 150 | H27: 66.67 | I27: 200 | J27: 106.25 | K27: 223 | L27: 170 | M27: 100 | N27: 80 | O27: 100 | P27: 100 | Q27: 35 | R27: 20 | S27: 100 | T27: 90 | U27: 20 | V27: 3000
A28: 27 | B28: 0 | C28: 0 | D28: 0 | E28: 1289.08 | F28: 150 | G28: 150 | H28: 66.67 | I28: 200 | J28: 106.25 | K28: 223 | L28: 170 | M28: 100 | N28: 80 | O28: 100 | P28: 100 | Q28: 35 | R28: 20 | S28: 100 | T28: 90 | U28: 20 | V28: 3000
A29: 28 | B29: 0 | C29: 0 | D29: 0 | E29: 1289.08 | F29: 150 | G29: 150 | H29: 66.67 | I29: 200 | J29: 106.25 | K29: 223 | L29: 170 | M29: 100 | N29: 80 | O29: 100 | P29: 100 | Q29: 35 | R29: 20 | S29: 100 | T29: 90 | U29: 20 | V29: 3000
A30: 29 | B30: 0 | C30: 0 | D30: 0 | E30: 1289.08 | F30: 150 | G30: 150 | H30: 66.67 | I30: 200 | J30: 106.25 | K30: 223 | L30: 170 | M30: 100 | N30: 80 | O30: 100 | P30: 100 | Q30: 35 | R30: 20 | S30: 100 | T30: 90 | U30: 20 | V30: 3000
A31: 30 | B31: 0 | C31: 0 | D31: 0 | E31: 1289.08 | F31: 150 | G31: 150 | H31: 66.67 | I31: 200 | J31: 106.25 | K31: 223 | L31: 170 | M31: 100 | N31: 80 | O31: 100 | P31: 100 | Q31: 35 | R31: 20 | S31: 100 | T31: 90 | U31: 20 | V31: 3000
A32: 31 | B32: 0 | C32: 0 | D32: 0 | E32: 1289.08 | F32: 150 | G32: 150 | H32: 66.67 | I32: 200 | J32: 106.25 | K32: 223 | L32: 170 | M32: 100 | N32: 80 | O32: 100 | P32: 100 | Q32: 35 | R32: 20 | S32: 100 | T32: 90 | U32: 20 | V32: 3000
A33: 32 | B33: 0 | C33: 0 | D33: 0 | E33: 144.35 | F33: 1294.73 | G33: 150 | H33: 66.67 | I33: 200 | J33: 106.25 | K33: 223 | L33: 170 | M33: 100 | N33: 80 | O33: 100 | P33: 100 | Q33: 35 | R33: 20 | S33: 100 | T33: 90 | U33: 20 | V33: 3000
A34: 33 | B34: 0 | C34: 0 | D34: 0 | E34: 0 | F34: 1439.08 | G34: 150 | H34: 66.67 | I34: 200 | J34: 106.25 | K34: 223 | L34: 170 | M34: 100 | N34: 80 | O34: 100 | P34: 100 | Q34: 35 | R34: 20 | S34: 100 | T34: 90 | U34: 20 | V34: =U34 + T34 + S34 + R34 + Q34 + P34 + O34 + N34 + M34 + L34 + K34 + J34 + I34 + H34 + G34 + F34 + E34 + D34 + C34 + B34 -> 3000
A35: 34 | B35: 0 | C35: 0 | D35: 0 | E35: 0 | F35: 1531.65 | G35: 150 | H35: 66.67 | I35: 200 | J35: 106.25 | K35: 223 | L35: 170 | M35: 7.43 | N35: 80 | O35: 100 | P35: 100 | Q35: 35 | R35: 20 | S35: 100 | T35: 90 | U35: 20 | V35: 3000
A36: 35 | B36: 0 | C36: 0 | D36: 0 | E36: 0 | F36: 1539.08 | G36: 150 | H36: 66.67 | I36: 200 | J36: 106.25 | K36: 223 | L36: 170 | M36: 0 | N36: 80 | O36: 100 | P36: 100 | Q36: 35 | R36: 20 | S36: 100 | T36: 90 | U36: 20 | V36: 3000
A37: 36 | B37: 0 | C37: 0 | D37: 0 | E37: 0 | F37: 1539.08 | G37: 150 | H37: 66.67 | I37: 200 | J37: 106.25 | K37: 223 | L37: 170 | M37: 0 | N37: 80 | O37: 100 | P37: 100 | Q37: 35 | R37: 20 | S37: 100 | T37: 90 | U37: 20 | V37: 3000
A38: 37 | B38: 0 | C38: 0 | D38: 0 | E38: 0 | F38: 1539.08 | G38: 150 | H38: 66.67 | I38: 200 | J38: 106.25 | K38: 223 | L38: 170 | M38: 0 | N38: 80 | O38: 100 | P38: 100 | Q38: 35 | R38: 20 | S38: 100 | T38: 90 | U38: 20 | V38: 3000
A39: 38 | B39: 0 | C39: 0 | D39: 0 | E39: 0 | F39: 1539.08 | G39: 150 | H39: 66.67 | I39: 200 | J39: 106.25 | K39: 223 | L39: 170 | M39: 0 | N39: 80 | O39: 100 | P39: 100 | Q39: 35 | R39: 20 | S39: 100 | T39: 90 | U39: 20 | V39: 3000
A40: 39 | B40: 0 | C40: 0 | D40: 0 | E40: 0 | F40: 1539.08 | G40: 150 | H40: 66.67 | I40: 200 | J40: 106.25 | K40: 223 | L40: 170 | M40: 0 | N40: 80 | O40: 100 | P40: 100 | Q40: 35 | R40: 20 | S40: 100 | T40: 90 | U40: 20 | V40: 3000
A41: 40 | B41: 0 | C41: 0 | D41: 0 | E41: 0 | F41: 1539.08 | G41: 150 | H41: 66.67 | I41: 200 | J41: 106.25 | K41: 223 | L41: 170 | M41: 0 | N41: 80 | O41: 100 | P41: 100 | Q41: 35 | R41: 20 | S41: 100 | T41: 90 | U41: 20 | V41: 3000
A42: 41 | B42: 0 | C42: 0 | D42: 0 | E42: 0 | F42: 1539.08 | G42: 150 | H42: 66.67 | I42: 200 | J42: 106.25 | K42: 223 | L42: 170 | M42: 0 | N42: 80 | O42: 100 | P42: 100 | Q42: 35 | R42: 20 | S42: 100 | T42: 90 | U42: 20 | V42: 3000
A43: 42 | B43: 0 | C43: 0 | D43: 0 | E43: 0 | F43: 1539.08 | G43: 150 | H43: 66.67 | I43: 200 | J43: 106.25 | K43: 223 | L43: 170 | M43: 0 | N43: 80 | O43: 100 | P43: 100 | Q43: 35 | R43: 20 | S43: 100 | T43: 90 | U43: 20 | V43: 3000
A44: 43 | B44: 0 | C44: 0 | D44: 0 | E44: 0 | F44: 1539.08 | G44: 150 | H44: 66.67 | I44: 200 | J44: 106.25 | K44: 223 | L44: 170 | M44: 0 | N44: 80 | O44: 100 | P44: 100 | Q44: 35 | R44: 20 | S44: 100 | T44: 90 | U44: 20 | V44: 3000
A45: 44 | B45: 0 | C45: 0 | D45: 0 | E45: 0 | F45: 1539.08 | G45: 150 | H45: 66.67 | I45: 200 | J45: 106.25 | K45: 223 | L45: 170 | M45: 0 | N45: 80 | O45: 100 | P45: 100 | Q45: 35 | R45: 20 | S45: 100 | T45: 90 | U45: 20 | V45: 3000
A46: 45 | B46: 0 | C46: 0 | D46: 0 | E46: 0 | F46: 1539.08 | G46: 150 | H46: 66.67 | I46: 200 | J46: 106.25 | K46: 223 | L46: 170 | M46: 0 | N46: 80 | O46: 100 | P46: 100 | Q46: 35 | R46: 20 | S46: 100 | T46: 90 | U46: 20 | V46: 3000
A47: 46 | B47: 0 | C47: 0 | D47: 0 | E47: 0 | F47: 1539.08 | G47: 150 | H47: 66.67 | I47: 200 | J47: 106.25 | K47: 223 | L47: 170 | M47: 0 | N47: 80 | O47: 100 | P47: 100 | Q47: 35 | R47: 20 | S47: 100 | T47: 90 | U47: 20 | V47: 3000
A48: 47 | B48: 0 | C48: 0 | D48: 0 | E48: 0 | F48: 1539.08 | G48: 150 | H48: 66.67 | I48: 200 | J48: 106.25 | K48: 223 | L48: 170 | M48: 0 | N48: 80 | O48: 100 | P48: 100 | Q48: 35 | R48: 20 | S48: 100 | T48: 90 | U48: 20 | V48: 3000
A49: 48 | B49: 0 | C49: 0 | D49: 0 | E49: 0 | F49: 1539.08 | G49: 150 | H49: 66.67 | I49: 200 | J49: 106.25 | K49: 223 | L49: 170 | M49: 0 | N49: 80 | O49: 100 | P49: 100 | Q49: 35 | R49: 20 | S49: 100 | T49: 90 | U49: 20 | V49: 3000
A50: 49 | B50: 0 | C50: 0 | D50: 0 | E50: 0 | F50: 1539.08 | G50: 150 | H50: 66.67 | I50: 200 | J50: 106.25 | K50: 223 | L50: 170 | M50: 0 | N50: 80 | O50: 100 | P50: 100 | Q50: 35 | R50: 20 | S50: 100 | T50: 90 | U50: 20 | V50: 3000
A51: 50 | B51: 0 | C51: 0 | D51: 0 | E51: 0 | F51: 1539.08 | G51: 150 | H51: 66.67 | I51: 200 | J51: 106.25 | K51: 223 | L51: 170 | M51: 0 | N51: 80 | O51: 100 | P51: 100 | Q51: 35 | R51: 20 | S51: 100 | T51: 90 | U51: 20 | V51: 3000
A52: 51 | B52: 0 | C52: 0 | D52: 0 | E52: 0 | F52: 1539.08 | G52: 150 | H52: 66.67 | I52: 200 | J52: 106.25 | K52: 223 | L52: 170 | M52: 0 | N52: 80 | O52: 100 | P52: 100 | Q52: 35 | R52: 20 | S52: 100 | T52: 90 | U52: 20 | V52: 3000
A53: 52 | B53: 0 | C53: 0 | D53: 0 | E53: 0 | F53: 1539.08 | G53: 150 | H53: 66.67 | I53: 200 | J53: 106.25 | K53: 223 | L53: 170 | M53: 0 | N53: 80 | O53: 100 | P53: 100 | Q53: 35 | R53: 20 | S53: 100 | T53: 90 | U53: 20 | V53: 3000
A54: 53 | B54: 0 | C54: 0 | D54: 0 | E54: 0 | F54: 1539.08 | G54: 150 | H54: 66.67 | I54: 200 | J54: 106.25 | K54: 223 | L54: 170 | M54: 0 | N54: 80 | O54: 100 | P54: 100 | Q54: 35 | R54: 20 | S54: 100 | T54: 90 | U54: 20 | V54: 3000
A55: 54 | B55: 0 | C55: 0 | D55: 0 | E55: 0 | F55: 1539.08 | G55: 150 | H55: 66.67 | I55: 200 | J55: 106.25 | K55: 223 | L55: 170 | M55: 0 | N55: 80 | O55: 100 | P55: 100 | Q55: 35 | R55: 20 | S55: 100 | T55: 90 | U55: 20 | V55: 3000
A56: 55 | B56: 0 | C56: 0 | D56: 0 | E56: 0 | F56: 1539.08 | G56: 150 | H56: 66.67 | I56: 200 | J56: 106.25 | K56: 223 | L56: 170 | M56: 0 | N56: 80 | O56: 100 | P56: 100 | Q56: 35 | R56: 20 | S56: 100 | T56: 90 | U56: 20 | V56: 3000
A57: 56 | B57: 0 | C57: 0 | D57: 0 | E57: 0 | F57: 1539.08 | G57: 150 | H57: 66.67 | I57: 200 | J57: 106.25 | K57: 223 | L57: 170 | M57: 0 | N57: 80 | O57: 100 | P57: 100 | Q57: 35 | R57: 20 | S57: 100 | T57: 90 | U57: 20 | V57: 3000
A58: 57 | B58: 0 | C58: 0 | D58: 0 | E58: 0 | F58: 1539.08 | G58: 150 | H58: 66.67 | I58: 200 | J58: 106.25 | K58: 223 | L58: 170 | M58: 0 | N58: 80 | O58: 100 | P58: 100 | Q58: 35 | R58: 20 | S58: 100 | T58: 90 | U58: 20 | V58: 3000
A59: 58 | B59: 0 | C59: 0 | D59: 0 | E59: 0 | F59: 894.08 | G59: 795 | H59: 66.67 | I59: 200 | J59: 106.25 | K59: 223 | L59: 170 | M59: 0 | N59: 80 | O59: 100 | P59: 100 | Q59: 35 | R59: 20 | S59: 100 | T59: 90 | U59: 20 | V59: 3000
A60: 59 | B60: 0 | C60: 0 | D60: 0 | E60: 0 | F60: 0 | G60: 1689.08 | H60: 66.67 | I60: 200 | J60: 106.25 | K60: 223 | L60: 170 | M60: 0 | N60: 80 | O60: 100 | P60: 100 | Q60: 35 | R60: 20 | S60: 100 | T60: 90 | U60: 20 | V60: 3000
A61: 60 | B61: 0 | C61: 0 | D61: 0 | E61: 0 | F61: 0 | G61: 1689.08 | H61: 66.67 | I61: 200 | J61: 106.25 | K61: 223 | L61: 170 | M61: 0 | N61: 80 | O61: 100 | P61: 100 | Q61: 35 | R61: 20 | S61: 100 | T61: 90 | U61: 20 | V61: 3000
A62: 61 | B62: 0 | C62: 0 | D62: 0 | E62: 0 | F62: 0 | G62: 2055.56 | H62: 66.67 | I62: 200 | J62: 106.25 | K62: 3 | L62: 23.52 | M62: 0 | N62: 80 | O62: 100 | P62: 100 | Q62: 35 | R62: 20 | S62: 100 | T62: 90 | U62: 20 | V62: 3000
A63: 62 | B63: 0 | C63: 0 | D63: 0 | E63: 0 | F63: 0 | G63: 2082.08 | H63: 66.67 | I63: 200 | J63: 106.25 | K63: 0 | L63: 0 | M63: 0 | N63: 80 | O63: 100 | P63: 100 | Q63: 35 | R63: 20 | S63: 100 | T63: 90 | U63: 20 | V63: 3000
A64: 63 | B64: 0 | C64: 0 | D64: 0 | E64: 0 | F64: 0 | G64: 1519.6 | H64: 648.69 | I64: 180.46 | J64: 106.25 | K64: 0 | L64: 0 | M64: 0 | N64: 80 | O64: 100 | P64: 100 | Q64: 35 | R64: 20 | S64: 100 | T64: 90 | U64: 20 | V64: 3000
A65: 64 | B65: 0 | C65: 0 | D65: 0 | E65: 0 | F65: 0 | G65: 0 | H65: 2348.75 | I65: 0 | J65: 106.25 | K65: 0 | L65: 0 | M65: 0 | N65: 80 | O65: 100 | P65: 100 | Q65: 35 | R65: 20 | S65: 100 | T65: 90 | U65: 20 | V65: 3000
A66: 65 | B66: 0 | C66: 0 | D66: 0 | E66: 0 | F66: 0 | G66: 0 | H66: 2348.75 | I66: 0 | J66: 106.25 | K66: 0 | L66: 0 | M66: 0 | N66: 80 | O66: 100 | P66: 100 | Q66: 35 | R66: 20 | S66: 100 | T66: 90 | U66: 20 | V66: =U66 + T66 + S66 + R66 + Q66 + P66 + O66 + N66 + M66 + L66 + K66 + J66 + I66 + H66 + G66 + F66 + E66 + D66 + C66 + B66 -> 3000
A67: 66 | B67: 0 | C67: 0 | D67: 0 | E67: 0 | F67: 0 | G67: 0 | H67: 2348.75 | I67: 0 | J67: 106.25 | K67: 0 | L67: 0 | M67: 0 | N67: 80 | O67: 100 | P67: 100 | Q67: 35 | R67: 20 | S67: 100 | T67: 90 | U67: 20 | V67: 3000
A68: 67 | B68: 0 | C68: 0 | D68: 0 | E68: 0 | F68: 0 | G68: 0 | H68: 504.02 | I68: 0 | J68: 1950.98 | K68: 0 | L68: 0 | M68: 0 | N68: 80 | O68: 100 | P68: 100 | Q68: 35 | R68: 20 | S68: 100 | T68: 90 | U68: 20 | V68: 3000
A69: 68 | B69: 0 | C69: 0 | D69: 0 | E69: 0 | F69: 0 | G69: 0 | H69: 0 | I69: 0 | J69: 2455 | K69: 0 | L69: 0 | M69: 0 | N69: 80 | O69: 100 | P69: 100 | Q69: 35 | R69: 20 | S69: 100 | T69: 90 | U69: 20 | V69: 3000
A70: 69 | B70: 0 | C70: 0 | D70: 0 | E70: 0 | F70: 0 | G70: 0 | H70: 0 | I70: 0 | J70: 2455 | K70: 0 | L70: 0 | M70: 0 | N70: 80 | O70: 100 | P70: 100 | Q70: 35 | R70: 20 | S70: 100 | T70: 90 | U70: 20 | V70: 3000
A71: 70 | B71: 0 | C71: 0 | D71: 0 | E71: 0 | F71: 0 | G71: 0 | H71: 0 | I71: 0 | J71: 2455 | K71: 0 | L71: 0 | M71: 0 | N71: 80 | O71: 100 | P71: 100 | Q71: 35 | R71: 20 | S71: 100 | T71: 90 | U71: 20 | V71: 3000
A72: 71 | B72: 0 | C72: 0 | D72: 0 | E72: 0 | F72: 0 | G72: 0 | H72: 0 | I72: 0 | J72: 2455 | K72: 0 | L72: 0 | M72: 0 | N72: 80 | O72: 100 | P72: 100 | Q72: 35 | R72: 20 | S72: 100 | T72: 90 | U72: 20 | V72: 3000
A73: 72 | B73: 0 | C73: 0 | D73: 0 | E73: 0 | F73: 0 | G73: 0 | H73: 0 | I73: 0 | J73: 2464.76 | K73: 0 | L73: 0 | M73: 0 | N73: 80 | O73: 100 | P73: 100 | Q73: 35 | R73: 10.24 | S73: 100 | T73: 90 | U73: 20 | V73: 3000
A74: 73 | B74: 0 | C74: 0 | D74: 0 | E74: 0 | F74: 0 | G74: 0 | H74: 0 | I74: 0 | J74: 1176.21 | K74: 0 | L74: 0 | M74: 0 | N74: 80 | O74: 1398.79 | P74: 100 | Q74: 35 | R74: 0 | S74: 100 | T74: 90 | U74: 20 | V74: 3000
A75: 74 | B75: 0 | C75: 0 | D75: 0 | E75: 0 | F75: 0 | G75: 0 | H75: 0 | I75: 0 | J75: 0 | K75: 0 | L75: 0 | M75: 0 | N75: 80 | O75: 2575 | P75: 100 | Q75: 35 | R75: 0 | S75: 100 | T75: 90 | U75: 20 | V75: 3000
A76: 75 | B76: 0 | C76: 0 | D76: 0 | E76: 0 | F76: 0 | G76: 0 | H76: 0 | I76: 0 | J76: 0 | K76: 0 | L76: 0 | M76: 0 | N76: 80 | O76: 2575 | P76: 100 | Q76: 35 | R76: 0 | S76: 100 | T76: 90 | U76: 20 | V76: 3000
A77: 76 | B77: 0 | C77: 0 | D77: 0 | E77: 0 | F77: 0 | G77: 0 | H77: 0 | I77: 0 | J77: 0 | K77: 0 | L77: 0 | M77: 0 | N77: 80 | O77: 2575 | P77: 100 | Q77: 35 | R77: 0 | S77: 100 | T77: 90 | U77: 20 | V77: 3000
A78: 77 | B78: 0 | C78: 0 | D78: 0 | E78: 0 | F78: 0 | G78: 0 | H78: 0 | I78: 0 | J78: 0 | K78: 0 | L78: 0 | M78: 0 | N78: 80 | O78: 2575 | P78: 100 | Q78: 35 | R78: 0 | S78: 100 | T78: 90 | U78: 20 | V78: 3000
A79: 78 | B79: 0 | C79: 0 | D79: 0 | E79: 0 | F79: 0 | G79: 0 | H79: 0 | I79: 0 | J79: 0 | K79: 0 | L79: 0 | M79: 0 | N79: 80 | O79: 2575 | P79: 100 | Q79: 35 | R79: 0 | S79: 100 | T79: 90 | U79: 20 | V79: 3000
A80: 79 | B80: 0 | C80: 0 | D80: 0 | E80: 0 | F80: 0 | G80: 0 | H80: 0 | I80: 0 | J80: 0 | K80: 0 | L80: 0 | M80: 0 | N80: 80 | O80: 2575 | P80: 100 | Q80: 35 | R80: 0 | S80: 100 | T80: 90 | U80: 20 | V80: 3000
A81: 80 | B81: 0 | C81: 0 | D81: 0 | E81: 0 | F81: 0 | G81: 0 | H81: 0 | I81: 0 | J81: 0 | K81: 0 | L81: 0 | M81: 0 | N81: 80 | O81: 2575 | P81: 100 | Q81: 35 | R81: 0 | S81: 100 | T81: 90 | U81: 20 | V81: 3000
A82: 81 | B82: 0 | C82: 0 | D82: 0 | E82: 0 | F82: 0 | G82: 0 | H82: 0 | I82: 0 | J82: 0 | K82: 0 | L82: 0 | M82: 0 | N82: 80 | O82: 2575 | P82: 100 | Q82: 35 | R82: 0 | S82: 100 | T82: 90 | U82: 20 | V82: 3000
A83: 82 | B83: 0 | C83: 0 | D83: 0 | E83: 0 | F83: 0 | G83: 0 | H83: 0 | I83: 0 | J83: 0 | K83: 0 | L83: 0 | M83: 0 | N83: 80 | O83: 2575 | P83: 100 | Q83: 35 | R83: 0 | S83: 100 | T83: 90 | U83: 20 | V83: 3000
A84: 83 | B84: 0 | C84: 0 | D84: 0 | E84: 0 | F84: 0 | G84: 0 | H84: 0 | I84: 0 | J84: 0 | K84: 0 | L84: 0 | M84: 0 | N84: 80 | O84: 2575 | P84: 100 | Q84: 35 | R84: 0 | S84: 100 | T84: 90 | U84: 20 | V84: 3000
A85: 84 | B85: 0 | C85: 0 | D85: 0 | E85: 0 | F85: 0 | G85: 0 | H85: 0 | I85: 0 | J85: 0 | K85: 0 | L85: 0 | M85: 0 | N85: 80 | O85: 1976.86 | P85: 698.14 | Q85: 35 | R85: 0 | S85: 100 | T85: 90 | U85: 20 | V85: 3000
A86: 85 | B86: 0 | C86: 0 | D86: 0 | E86: 0 | F86: 0 | G86: 0 | H86: 0 | I86: 0 | J86: 0 | K86: 0 | L86: 0 | M86: 0 | N86: 80 | O86: 0 | P86: 2675 | Q86: 35 | R86: 0 | S86: 100 | T86: 90 | U86: 20 | V86: 3000
A87: 86 | B87: 0 | C87: 0 | D87: 0 | E87: 0 | F87: 0 | G87: 0 | H87: 0 | I87: 0 | J87: 0 | K87: 0 | L87: 0 | M87: 0 | N87: 80 | O87: 0 | P87: 2675 | Q87: 35 | R87: 0 | S87: 100 | T87: 90 | U87: 20 | V87: 3000
A88: 87 | B88: 0 | C88: 0 | D88: 0 | E88: 0 | F88: 0 | G88: 0 | H88: 0 | I88: 0 | J88: 0 | K88: 0 | L88: 0 | M88: 0 | N88: 80 | O88: 0 | P88: 2675 | Q88: 35 | R88: 0 | S88: 100 | T88: 90 | U88: 20 | V88: 3000
A89: 88 | B89: 0 | C89: 0 | D89: 0 | E89: 0 | F89: 0 | G89: 0 | H89: 0 | I89: 0 | J89: 0 | K89: 0 | L89: 0 | M89: 0 | N89: 80 | O89: 0 | P89: 2675 | Q89: 35 | R89: 0 | S89: 100 | T89: 90 | U89: 20 | V89: 3000
A90: 89 | B90: 0 | C90: 0 | D90: 0 | E90: 0 | F90: 0 | G90: 0 | H90: 0 | I90: 0 | J90: 0 | K90: 0 | L90: 0 | M90: 0 | N90: 80 | O90: 0 | P90: 2675 | Q90: 35 | R90: 0 | S90: 100 | T90: 90 | U90: 20 | V90: 3000
A91: 90 | B91: 0 | C91: 0 | D91: 0 | E91: 0 | F91: 0 | G91: 0 | H91: 0 | I91: 0 | J91: 0 | K91: 0 | L91: 0 | M91: 0 | N91: 80 | O91: 0 | P91: 2675 | Q91: 35 | R91: 0 | S91: 100 | T91: 90 | U91: 20 | V91: 3000
A92: 91 | B92: 0 | C92: 0 | D92: 0 | E92: 0 | F92: 0 | G92: 0 | H92: 0 | I92: 0 | J92: 0 | K92: 0 | L92: 0 | M92: 0 | N92: 80 | O92: 0 | P92: 2675 | Q92: 35 | R92: 0 | S92: 100 | T92: 90 | U92: 20 | V92: 3000
A93: 92 | B93: 0 | C93: 0 | D93: 0 | E93: 0 | F93: 0 | G93: 0 | H93: 0 | I93: 0 | J93: 0 | K93: 0 | L93: 0 | M93: 0 | N93: 80 | O93: 0 | P93: 2675 | Q93: 35 | R93: 0 | S93: 100 | T93: 90 | U93: 20 | V93: 3000
A94: 93 | B94: 0 | C94: 0 | D94: 0 | E94: 0 | F94: 0 | G94: 0 | H94: 0 | I94: 0 | J94: 0 | K94: 0 | L94: 0 | M94: 0 | N94: 82.01 | O94: 0 | P94: 2672.99 | Q94: 35 | R94: 0 | S94: 100 | T94: 90 | U94: 20 | V94: 3000
A95: 94 | B95: 0 | C95: 0 | D95: 0 | E95: 0 | F95: 0 | G95: 0 | H95: 0 | I95: 0 | J95: 0 | K95: 0 | L95: 0 | M95: 0 | N95: 2755 | O95: 0 | P95: 0 | Q95: 35 | R95: 0 | S95: 100 | T95: 90 | U95: 20 | V95: 3000
A96: 95 | B96: 0 | C96: 0 | D96: 0 | E96: 0 | F96: 0 | G96: 0 | H96: 0 | I96: 0 | J96: 0 | K96: 0 | L96: 0 | M96: 0 | N96: 2755 | O96: 0 | P96: 0 | Q96: 35 | R96: 0 | S96: 100 | T96: 90 | U96: 20 | V96: 3000
A97: 96 | B97: 0 | C97: 0 | D97: 0 | E97: 0 | F97: 0 | G97: 0 | H97: 0 | I97: 0 | J97: 0 | K97: 0 | L97: 0 | M97: 0 | N97: 2755 | O97: 0 | P97: 0 | Q97: 35 | R97: 0 | S97: 100 | T97: 90 | U97: 20 | V97: 3000
A98: 97 | B98: 0 | C98: 0 | D98: 0 | E98: 0 | F98: 0 | G98: 0 | H98: 0 | I98: 0 | J98: 0 | K98: 0 | L98: 0 | M98: 0 | N98: 2755 | O98: 0 | P98: 0 | Q98: 35 | R98: 0 | S98: 100 | T98: 90 | U98: 20 | V98: =U98 + T98 + S98 + R98 + Q98 + P98 + O98 + N98 + M98 + L98 + K98 + J98 + I98 + H98 + G98 + F98 + E98 + D98 + C98 + B98 -> 3000
A99: 98 | B99: 0 | C99: 0 | D99: 0 | E99: 0 | F99: 0 | G99: 0 | H99: 0 | I99: 0 | J99: 0 | K99: 0 | L99: 0 | M99: 0 | N99: 2755 | O99: 0 | P99: 0 | Q99: 35 | R99: 0 | S99: 100 | T99: 90 | U99: 20 | V99: 3000
A100: 99 | B100: 0 | C100: 0 | D100: 0 | E100: 0 | F100: 0 | G100: 0 | H100: 0 | I100: 0 | J100: 0 | K100: 0 | L100: 0 | M100: 0 | N100: 2755 | O100: 0 | P100: 0 | Q100: 35 | R100: 0 | S100: 100 | T100: 90 | U100: 20 | V100: 3000
A101: 100 | B101: 0 | C101: 0 | D101: 0 | E101: 0 | F101: 0 | G101: 0 | H101: 0 | I101: 0 | J101: 0 | K101: 0 | L101: 0 | M101: 0 | N101: 2318.94 | O101: 0 | P101: 0 | Q101: 471.06 | R101: 0 | S101: 100 | T101: 90 | U101: 20 | V101: 3000
A102: 101 | B102: 0 | C102: 0 | D102: 0 | E102: 0 | F102: 0 | G102: 0 | H102: 0 | I102: 0 | J102: 0 | K102: 0 | L102: 0 | M102: 0 | N102: 0 | O102: 0 | P102: 0 | Q102: 2790 | R102: 0 | S102: 100 | T102: 90 | U102: 20 | V102: 3000
A103: 102 | B103: 0 | C103: 0 | D103: 0 | E103: 0 | F103: 0 | G103: 0 | H103: 0 | I103: 0 | J103: 0 | K103: 0 | L103: 0 | M103: 0 | N103: 0 | O103: 0 | P103: 0 | Q103: 2790 | R103: 0 | S103: 100 | T103: 90 | U103: 20 | V103: 3000
A104: 103 | B104: 0 | C104: 0 | D104: 0 | E104: 0 | F104: 0 | G104: 0 | H104: 0 | I104: 0 | J104: 0 | K104: 0 | L104: 0 | M104: 0 | N104: 0 | O104: 0 | P104: 0 | Q104: 1040.97 | R104: 0 | S104: 1849.03 | T104: 90 | U104: 20 | V104: 3000
A105: 104 | B105: 0 | C105: 0 | D105: 0 | E105: 0 | F105: 0 | G105: 0 | H105: 0 | I105: 0 | J105: 0 | K105: 0 | L105: 0 | M105: 0 | N105: 0 | O105: 0 | P105: 0 | Q105: 0 | R105: 0 | S105: 2890 | T105: 90 | U105: 20 | V105: 3000
A106: 105 | B106: 0 | C106: 0 | D106: 0 | E106: 0 | F106: 0 | G106: 0 | H106: 0 | I106: 0 | J106: 0 | K106: 0 | L106: 0 | M106: 0 | N106: 0 | O106: 0 | P106: 0 | Q106: 0 | R106: 0 | S106: 2890 | T106: 90 | U106: 20 | V106: 3000
A107: 106 | B107: 0 | C107: 0 | D107: 0 | E107: 0 | F107: 0 | G107: 0 | H107: 0 | I107: 0 | J107: 0 | K107: 0 | L107: 0 | M107: 0 | N107: 0 | O107: 0 | P107: 0 | Q107: 0 | R107: 0 | S107: 2890 | T107: 90 | U107: 20 | V107: 3000
A108: 107 | B108: 0 | C108: 0 | D108: 0 | E108: 0 | F108: 0 | G108: 0 | H108: 0 | I108: 0 | J108: 0 | K108: 0 | L108: 0 | M108: 0 | N108: 0 | O108: 0 | P108: 0 | Q108: 0 | R108: 0 | S108: 2890 | T108: 90 | U108: 20 | V108: 3000
A109: 108 | B109: 0 | C109: 0 | D109: 0 | E109: 0 | F109: 0 | G109: 0 | H109: 0 | I109: 0 | J109: 0 | K109: 0 | L109: 0 | M109: 0 | N109: 0 | O109: 0 | P109: 0 | Q109: 0 | R109: 0 | S109: 2890 | T109: 90 | U109: 20 | V109: 3000
A110: 109 | B110: 0 | C110: 0 | D110: 0 | E110: 0 | F110: 0 | G110: 0 | H110: 0 | I110: 0 | J110: 0 | K110: 0 | L110: 0 | M110: 0 | N110: 0 | O110: 0 | P110: 0 | Q110: 0 | R110: 0 | S110: 2890 | T110: 90 | U110: 20 | V110: 3000
A111: 110 | B111: 0 | C111: 0 | D111: 0 | E111: 0 | F111: 0 | G111: 0 | H111: 0 | I111: 0 | J111: 0 | K111: 0 | L111: 0 | M111: 0 | N111: 0 | O111: 0 | P111: 0 | Q111: 0 | R111: 0 | S111: 94.98 | T111: 2885.02 | U111: 20 | V111: 3000
A112: 111 | B112: 0 | C112: 0 | D112: 0 | E112: 0 | F112: 0 | G112: 0 | H112: 0 | I112: 0 | J112: 0 | K112: 0 | L112: 0 | M112: 0 | N112: 0 | O112: 0 | P112: 0 | Q112: 0 | R112: 0 | S112: 0 | T112: 2980 | U112: 20 | V112: 3000
A113: 112 | B113: 0 | C113: 0 | D113: 0 | E113: 0 | F113: 0 | G113: 0 | H113: 0 | I113: 0 | J113: 0 | K113: 0 | L113: 0 | M113: 0 | N113: 0 | O113: 0 | P113: 0 | Q113: 0 | R113: 0 | S113: 0 | T113: 2980 | U113: 20 | V113: 3000
A114: 113 | B114: 0 | C114: 0 | D114: 0 | E114: 0 | F114: 0 | G114: 0 | H114: 0 | I114: 0 | J114: 0 | K114: 0 | L114: 0 | M114: 0 | N114: 0 | O114: 0 | P114: 0 | Q114: 0 | R114: 0 | S114: 0 | T114: 2980 | U114: 20 | V114: 3000
A115: 114 | B115: 0 | C115: 0 | D115: 0 | E115: 0 | F115: 0 | G115: 0 | H115: 0 | I115: 0 | J115: 0 | K115: 0 | L115: 0 | M115: 0 | N115: 0 | O115: 0 | P115: 0 | Q115: 0 | R115: 0 | S115: 0 | T115: 1375.3 | U115: 1624.7 | V115: 3000
A116: 115 | B116: 0 | C116: 0 | D116: 0 | E116: 0 | F116: 0 | G116: 0 | H116: 0 | I116: 0 | J116: 0 | K116: 0 | L116: 0 | M116: 0 | N116: 0 | O116: 0 | P116: 0 | Q116: 0 | R116: 0 | S116: 0 | T116: 0 | U116: 542.27 | V116: 542.27

Sheet Calculators
A1: 1
A2: 2 | E2: These calculators consider the individual loans by them self, as if you were paying off only the loan you select.
A3: 3
A4: 4 | E4: Years to Payoff individual Loans | I4: Pmt to Payoff Individual loans in a given number of years
A5: 5 | E5: Loan Number | I5: Loan Number
A6: 6 | E6: Balance | I6: Balance
A7: 7 | E7: Ann. Rate | I7: Ann Rate
A8: 8 | E8: Min Pmt | I8: Years | J8: 1
A9: 9 | E9: Years | F9: =IF(AND(Calc_Balance>0,Calc_AnnRate>0,Calc_MinPmt>0),NPER(Calc_AnnRate/12,Calc_MinPmt,-Calc_Balance,0)/12,"") ->  | I9: Pmt | J9: =IF(Calc2_Balance>0,PMT(Calc2_AnnRate/12,J8*12,-Calc2_Balance),"") -> 
A10: 10
A11: 11
A12: 12
A13: 13
A14: 14
A15: 15
A16: 16
A17: 17
A18: 18
A19: 19
A20: 20

Sheet Interest Data (hidden)
A1: Months | B1: Rate Option | C1: Smallest First | D1: Largest First | E1: Rate Weighted | F1: Largest Int Pmt | G1: Int Weighted | H1: Equal | I1: Largest Initial | J1: Smallest Initial
A2: 1 | B2: 1819.71 | C2: 1819.71 | D2: 1819.71 | E2: 1819.71 | F2: 1819.71 | G2: 1819.71 | H2: 1819.71 | I2: 1819.71 | J2: 1819.71
A3: 2 | B3: 3621.77 | C3: 3631.61 | D3: 3628.5 | E3: 3628.32 | F3: 3628.5 | G3: 3629.06 | H3: 3629.79 | I3: 3628.5 | J3: 3631.61
A4: 3 | B4: 5405.84 | C4: 5435.06 | D4: 5426.24 | E4: 5425.69 | F4: 5426.24 | G4: 5427.94 | H4: 5430.13 | I4: 5426.24 | J4: 5435.06
A5: 4 | B5: 7171.62 | C5: 7225.76 | D5: 7212.85 | E5: 7211.69 | F5: 7212.85 | G5: 7216.23 | H5: 7220.63 | I5: 7212.85 | J5: 7225.76
A6: 5 | B6: 8918.75 | C6: 9003.51 | D6: 8988.18 | E6: 8986.19 | F6: 8988.18 | G6: 8993.84 | H6: 9001.19 | I6: 8988.18 | J6: 9003.51
A7: 6 | B7: 10646.88 | C7: 10769.19 | D7: 10752.11 | E7: 10749 | F7: 10752.11 | G7: 10760.63 | H7: 10771.7 | I7: 10752.11 | J7: 10769.19
A8: 7 | B8: 12356.29 | C8: 12526.29 | D8: 12504.54 | E8: 12500.03 | F8: 12504.54 | G8: 12516.53 | H8: 12532.05 | I8: 12504.54 | J8: 12526.29
A9: 8 | B9: 14049.13 | C9: 14274.72 | D9: 14245.36 | E9: 14239.07 | F9: 14245.36 | G9: 14261.4 | H9: 14282.11 | I9: 14245.36 | J9: 14274.72
A10: 9 | B10: 15725.14 | C10: 16014.38 | D10: 15974.42 | E10: 15966.03 | F10: 15974.42 | G10: 15995.12 | H10: 16021.8 | I10: 15974.42 | J10: 16014.38
A11: 10 | B11: 17384.07 | C11: 17747.34 | D11: 17691.62 | E11: 17680.71 | F11: 17691.62 | G11: 17717.61 | H11: 17751.02 | I11: 17691.62 | J11: 17747.34
A12: 11 | B12: 19025.65 | C12: 19473.76 | D12: 19396.79 | E12: 19383 | F12: 19396.79 | G12: 19428.7 | H12: 19469.62 | I12: 19396.79 | J12: 19473.76
A13: 12 | B13: 20649.65 | C13: 21193.61 | D13: 21092.71 | E13: 21072.7 | F13: 21089.85 | G13: 21128.3 | H13: 21177.53 | I13: 21089.85 | J13: 21193.61
A14: 13 | B14: 22255.83 | C14: 22906.85 | D14: 22776.44 | E14: 22749.7 | F14: 22770.69 | G14: 22816.26 | H14: 22874.59 | I14: 22770.69 | J14: 22906.85
A15: 14 | B15: 23843.88 | C15: 24603.83 | D15: 24450.66 | E15: 24413.81 | F15: 24439.12 | G15: 24492.47 | H15: 24560.7 | I15: 24439.12 | J15: 24603.83
A16: 15 | B16: 25413.57 | C16: 26279.25 | D16: 26112.48 | E16: 26064.86 | F16: 26095.07 | G16: 26156.82 | H16: 26235.71 | I16: 26095.07 | J16: 26279.25
A17: 16 | B17: 26964.61 | C17: 27932.67 | D17: 27764.59 | E17: 27702.69 | F17: 27738.37 | G17: 27809.18 | H17: 27899.5 | I17: 27738.37 | J17: 27932.67
A18: 17 | B18: 28496.72 | C18: 29563.68 | D18: 29404.08 | E18: 29327.14 | F18: 29368.9 | G18: 29449.45 | H18: 29552 | I18: 29368.9 | J18: 29563.68
A19: 18 | B19: 30009.63 | C19: 31180.81 | D19: 31030.81 | E19: 30938.02 | F19: 30986.54 | G19: 31077.47 | H19: 31193.06 | I19: 30986.54 | J19: 31181.58
A20: 19 | B20: 31503.03 | C20: 32788.44 | D20: 32647.46 | E20: 32535.18 | F20: 32591.11 | G20: 32693.12 | H20: 32822.51 | I20: 32591.11 | J20: 32791.15
A21: 20 | B21: 32976.64 | C21: 34386.52 | D21: 34251.11 | E21: 34118.39 | F21: 34182.5 | G21: 34296.28 | H21: 34440.27 | I21: 34182.5 | J21: 34392.35
A22: 21 | B22: 34433.93 | C22: 35974.97 | D22: 35844.46 | E22: 35687.53 | F22: 35760.56 | G22: 35886.8 | H22: 36046.18 | I22: 35760.56 | J22: 35985.11
A23: 22 | B23: 35876.12 | C23: 37553.72 | D23: 37424.59 | E23: 37242.38 | F23: 37325.17 | G23: 37464.57 | H23: 37640.14 | I23: 37325.17 | J23: 37569.39
A24: 23 | B24: 37304.2 | C24: 39122.72 | D24: 38994.22 | E24: 38782.77 | F24: 38876.19 | G24: 39029.46 | H24: 39221.97 | I24: 38876.19 | J24: 39145.14
A25: 24 | B25: 38717.97 | C25: 40681 | D25: 40553.21 | E25: 40308.51 | F25: 40413.44 | G25: 40581.31 | H25: 40791.55 | I25: 40413.44 | J25: 40712.26
A26: 25 | B26: 40117.34 | C26: 42228 | D26: 42098.64 | E26: 41819.59 | F26: 41936.81 | G26: 42120 | H26: 42348.78 | I26: 41936.81 | J26: 42269.94
A27: 26 | B27: 41502.17 | C27: 43763.59 | D27: 43633.22 | E27: 43315.88 | F27: 43442.01 | G27: 43645.36 | H27: 43893.34 | I27: 43446.15 | J27: 43815.67
A28: 27 | B28: 42872.3 | C28: 45287.7 | D28: 45153.98 | E28: 44797.31 | F28: 44932.88 | G28: 45157.31 | H28: 45424.75 | I28: 44941.28 | J28: 45349.34
A29: 28 | B29: 44227.59 | C29: 46800.19 | D29: 46663.61 | E29: 46266.02 | F29: 46409.28 | G29: 46655.71 | H29: 46942.88 | I29: 46422.04 | J29: 46870.81
A30: 29 | B30: 45567.92 | C30: 48301.14 | D30: 48159.18 | E30: 47721.73 | F30: 47866.93 | G30: 48140.38 | H30: 48447.55 | I30: 47888.31 | J30: 48380.02
A31: 30 | B31: 46893.13 | C31: 49791.38 | D31: 49643.35 | E31: 49164.34 | F31: 49309.66 | G31: 49611.19 | H31: 49938.61 | I31: 49339.9 | J31: 49876.85
A32: 31 | B32: 48203.08 | C32: 51270.84 | D32: 51116.04 | E32: 50593.7 | F32: 50737.35 | G32: 51068.02 | H32: 51416.3 | I32: 50776.68 | J32: 51361.19
A33: 32 | B33: 49497.64 | C33: 52739.42 | D33: 52574.31 | E33: 52009.56 | F33: 52149.82 | G33: 52510.71 | H33: 52880.5 | I33: 52198.48 | J33: 52832.91
A34: 33 | B34: 50777.1 | C34: 54197.02 | D34: 54020.81 | E34: 53411.7 | F34: 53542.76 | G34: 53939.05 | H34: 54331.02 | I34: 53605.13 | J34: 54292.3
A35: 34 | B35: 52041.44 | C35: 55645.69 | D35: 55455.47 | E35: 54799.95 | F35: 54920.06 | G35: 55352.71 | H35: 55767.68 | I35: 54996.5 | J35: 55741.04
A36: 35 | B36: 53290.1 | C36: 57085.78 | D36: 56875.33 | E36: 56174.19 | F36: 56284.4 | G36: 56751.5 | H36: 57190.33 | I36: 56372 | J36: 57179.02
A37: 36 | B37: 54522.92 | C37: 58517.24 | D37: 58283.1 | E37: 57534.25 | F37: 57635.66 | G37: 58135.3 | H37: 58598.83 | I37: 57731.44 | J37: 58606.16
A38: 37 | B38: 55739.75 | C38: 59940.03 | D38: 59678.67 | E38: 58879.98 | F38: 58970.42 | G38: 59503.95 | H38: 59992.99 | I38: 59074.65 | J38: 60021.68
A39: 38 | B39: 56940.4 | C39: 61352.68 | D39: 61058.57 | E39: 60211.21 | F39: 60291.76 | G39: 60857.29 | H39: 61372.63 | I39: 60401.41 | J39: 61424.66
A40: 39 | B40: 58124.76 | C40: 62751.32 | D40: 62426.59 | E40: 61527.82 | F40: 61599.58 | G40: 62195.19 | H40: 62737.6 | I40: 61711.6 | J40: 62815.02
A41: 40 | B41: 59292.67 | C41: 64135.81 | D41: 63778.69 | E41: 62829.66 | F41: 62890.44 | G41: 63517.49 | H41: 64089.37 | I41: 63005 | J41: 64192.64
A42: 41 | B42: 60443.99 | C42: 65506.03 | D42: 65118 | E42: 64116.53 | F42: 64167.43 | G42: 64824.04 | H42: 65428.43 | I42: 64281.45 | J42: 65558.46
A43: 42 | B43: 61578.54 | C43: 66861.82 | D43: 66444.35 | E43: 65388.3 | F43: 65430.41 | G43: 66114.7 | H43: 66754.61 | I43: 65540.72 | J43: 66912.49
A44: 43 | B44: 62696.19 | C44: 68200.19 | D44: 67754.37 | E44: 66644.78 | F44: 66679.25 | G44: 67389.24 | H44: 68067.79 | I44: 66782.67 | J44: 68251.71
A45: 44 | B45: 63796.76 | C45: 69510.27 | D45: 69051.73 | E45: 67885.83 | F45: 67913.8 | G45: 68647.6 | H45: 69367.87 | I45: 68007.06 | J45: 69562.65
A46: 45 | B46: 64880.09 | C46: 70791.6 | D46: 70335.74 | E46: 69111.26 | F46: 69133.89 | G46: 69889.58 | H46: 70654.75 | I46: 69213.71 | J46: 70844.85
A47: 46 | B47: 65946.02 | C47: 72043.67 | D47: 71606.25 | E47: 70320.94 | F47: 70336.08 | G47: 71115.03 | H47: 71928.27 | I47: 70402.42 | J47: 72097.81
A48: 47 | B48: 66994.41 | C48: 73266.02 | D48: 72859.82 | E48: 71514.66 | F48: 71523.48 | G48: 72325.31 | H48: 73188.3 | I48: 71573.01 | J48: 73321.06
A49: 48 | B49: 68025.07 | C49: 74459.99 | D49: 74100.18 | E49: 72692.25 | F49: 72695.92 | G49: 73520.28 | H49: 74434.7 | I49: 72725.26 | J49: 74516
A50: 49 | B50: 69037.83 | C50: 75634.96 | D50: 75326.56 | E50: 73853.51 | F50: 73853.23 | G50: 74699.87 | H50: 75667.12 | I50: 73861.14 | J50: 75695.08
A51: 50 | B51: 70032.56 | C51: 76790.76 | D51: 76538.87 | E51: 74997.73 | F51: 74995.28 | G51: 75864.1 | H51: 76885.47 | I51: 74982.32 | J51: 76858.19
A52: 51 | B52: 71009.06 | C52: 77927.18 | D52: 77733.6 | E52: 76124.04 | F52: 76118.59 | G52: 77012.88 | H52: 78089.43 | I52: 76088.62 | J52: 78005.17
A53: 52 | B53: 71967.18 | C53: 79044.02 | D53: 78913.89 | E53: 77231.87 | F53: 77226.24 | G53: 78146.08 | H53: 79278.93 | I53: 77179.89 | J53: 79135.89
A54: 53 | B54: 72906.71 | C54: 80143.22 | D54: 80079.59 | E54: 78322.58 | F54: 78318.07 | G54: 79263.55 | H54: 80453.83 | I54: 78255.98 | J54: 80250.19
A55: 54 | B55: 73827.51 | C55: 81226.01 | D55: 81230.56 | E55: 79399.3 | F55: 79392.73 | G55: 80365.17 | H55: 81613.93 | I55: 79316.75 | J55: 81344.66
A56: 55 | B56: 74729.4 | C56: 82292.24 | D56: 82367.22 | E56: 80461.91 | F56: 80451.21 | G56: 81450.81 | H56: 82759.12 | I56: 80362.03 | J56: 82418.99
A57: 56 | B57: 75612.21 | C57: 83341.77 | D57: 83485.55 | E57: 81510.32 | F57: 81493.38 | G57: 82520.32 | H57: 83889.05 | I57: 81391.67 | J57: 83472.98
A58: 57 | B58: 76475.76 | C58: 84376.28 | D58: 84588.72 | E58: 82544.39 | F58: 82519.12 | G58: 83573.22 | H58: 85003.08 | I58: 82405.59 | J58: 84507.23
A59: 58 | B59: 77319.86 | C59: 85404.82 | D59: 85676.82 | E59: 83564.01 | F59: 83528.51 | G59: 84609.33 | H59: 86101.02 | I59: 83403.89 | J59: 85528.3
A60: 59 | B60: 78145.13 | C60: 86427.38 | D60: 86749.72 | E60: 84569.06 | F60: 84520.1 | G60: 85628.51 | H60: 87182.72 | I60: 84386.42 | J60: 86536.11
A61: 60 | B61: 78952.53 | C61: 87443.95 | D61: 87803.73 | E61: 85559.43 | F61: 85491.44 | G61: 86630.66 | H61: 88247.99 | I61: 85353.03 | J61: 87530.55
A62: 61 | B62: 79741.91 | C62: 88454.51 | D62: 88842.81 | E62: 86535.01 | F62: 86445.85 | G62: 87615.67 | H62: 89296.65 | I62: 86303.54 | J62: 88511.54
A63: 62 | B63: 80512.29 | C63: 89459.08 | D63: 89866.12 | E63: 87495.94 | F63: 87385.33 | G63: 88583.47 | H63: 90328.54 | I63: 87239.98 | J63: 89479.01
A64: 63 | B64: 81263.44 | C64: 90457.63 | D64: 90875.78 | E64: 88443.63 | F64: 88307.65 | G64: 89533.93 | H64: 91343.44 | I64: 88162.28 | J64: 90432.86
A65: 64 | B65: 81995.4 | C65: 91444.45 | D65: 91871.73 | E65: 89378.01 | F65: 89214.85 | G65: 90466.96 | H65: 92341.23 | I65: 89070.35 | J65: 91377.79
A66: 65 | B66: 82708.5 | C66: 92417.7 | D66: 92854.23 | E66: 90298.94 | F66: 90107.17 | G66: 91383.46 | H66: 93321.66 | I66: 89964.46 | J66: 92316.51
A67: 66 | B67: 83402.59 | C67: 93377.3 | D67: 93824.38 | E67: 91206.38 | F67: 90984.48 | G67: 92284.7 | H67: 94284.57 | I67: 90844.49 | J67: 93249.03
A68: 67 | B68: 84077.52 | C68: 94323.16 | D68: 94774.09 | E68: 92100.2 | F68: 91847.92 | G68: 93170.57 | H68: 95233.04 | I68: 91710.34 | J68: 94175.33
A69: 68 | B69: 84735.4 | C69: 95255.18 | D69: 95707.41 | E69: 92980.3 | F69: 92696.08 | G69: 94040.95 | H69: 96167.5 | I69: 92561.87 | J69: 95095.4
A70: 69 | B70: 85376.77 | C70: 96173.27 | D70: 96628.96 | E70: 93846.61 | F70: 93526.38 | G70: 94895.78 | H70: 97088.28 | I70: 93399 | J70: 96009.24
A71: 70 | B71: 86001.49 | C71: 97079.53 | D71: 97536.4 | E71: 94699.03 | F71: 94341.1 | G71: 95734.92 | H71: 97996.51 | I71: 94221.57 | J71: 96914.61
A72: 71 | B72: 86609.46 | C72: 97975.82 | D72: 98429.62 | E72: 95538.02 | F72: 95140.16 | G72: 96558.32 | H72: 98892.12 | I72: 95029.49 | J72: 97810.01
A73: 72 | B73: 87200.54 | C73: 98862.11 | D73: 99308.47 | E73: 96363.86 | F73: 95916.46 | G73: 97365.83 | H73: 99775.02 | I73: 95822.62 | J73: 98695.4
A74: 73 | B74: 87774.61 | C74: 99738.35 | D74: 100174.07 | E74: 97176.22 | F74: 96677.94 | G74: 98157.54 | H74: 100645.15 | I74: 96600.86 | J74: 99570.74
A75: 74 | B75: 88333.67 | C75: 100604.51 | D75: 101018.14 | E75: 97974.87 | F75: 97423.19 | G75: 98934.03 | H75: 101502.42 | I75: 97364.05 | J75: 100435.99
A76: 75 | B76: 88879.61 | C76: 101460.55 | D76: 101844.88 | E76: 98760.3 | F76: 98152.08 | G76: 99695.23 | H76: 102346.74 | I76: 98112.08 | J76: 101291.12
A77: 76 | B77: 89412.35 | C77: 102306.42 | D77: 102658.97 | E77: 99532.43 | F77: 98861.92 | G77: 100441.04 | H77: 103178.04 | I77: 98844.84 | J77: 102136.07
A78: 77 | B78: 89931.83 | C78: 103142.76 | D78: 103457.99 | E78: 100291.17 | F78: 99555.08 | G78: 101171.37 | H78: 103996.24 | I78: 99562.18 | J78: 102971.62
A79: 78 | B79: 90437.95 | C79: 103970.98 | D79: 104241.82 | E79: 101036.45 | F79: 100232.69 | G79: 101886.11 | H79: 104801.43 | I79: 100263.97 | J79: 103799.05
A80: 79 | B80: 90930.68 | C80: 104791.06 | D80: 105010.35 | E80: 101768.17 | F80: 100894.41 | G80: 102585.19 | H80: 105594.31 | I80: 100950.12 | J80: 104618.35
A81: 80 | B81: 91409.91 | C81: 105602.99 | D81: 105756.45 | E81: 102486.23 | F81: 101535.87 | G81: 103268.51 | H81: 106374.74 | I81: 101620.45 | J81: 105429.49
A82: 81 | B82: 91875.59 | C82: 106406.74 | D82: 106484.32 | E82: 103190.56 | F82: 102157.65 | G82: 103935.97 | H82: 107142.39 | I82: 102274.86 | J82: 106232.44
A83: 82 | B83: 92327.63 | C83: 107202.29 | D83: 107197.64 | E83: 103881.05 | F83: 102764.82 | G83: 104587.49 | H83: 107897.23 | I83: 102913.19 | J83: 107027.19
A84: 83 | B84: 92765.97 | C84: 107989.63 | D84: 107897.29 | E84: 104557.5 | F84: 103358.81 | G84: 105223 | H84: 108639.14 | I84: 103535.32 | J84: 107813.73
A85: 84 | B85: 93190.52 | C85: 108768.73 | D85: 108580.89 | E85: 105219.56 | F85: 103938.05 | G85: 105842.38 | H85: 109368.57 | I85: 104141.11 | J85: 108592.02
A86: 85 | B86: 93601.2 | C86: 109537.56 | D86: 109248.27 | E86: 105867.1 | F86: 104499.4 | G86: 106445.55 | H86: 110085.65 | I86: 104731.73 | J86: 109359.89
A87: 86 | B87: 93997.97 | C87: 110295.9 | D87: 109899.3 | E87: 106500.03 | F87: 105045.79 | G87: 107032.42 | H87: 110790.27 | I87: 105307.31 | J87: 110117.27
A88: 87 | B88: 94380.73 | C88: 111043.69 | D88: 110531.28 | E88: 107118.27 | F88: 105578.62 | G88: 107602.92 | H88: 111482.38 | I88: 105867.7 | J88: 110864.09
A89: 88 | B89: 94749.41 | C89: 111780.9 | D89: 111139.51 | E89: 107721.71 | F89: 106096.27 | G89: 108156.96 | H89: 112161.92 | I89: 106412.76 | J89: 111600.33
A90: 89 | B90: 95103.94 | C90: 112507.49 | D90: 111732.15 | E90: 108310.26 | F90: 106598.68 | G90: 108694.47 | H90: 112828.81 | I90: 106942.4 | J90: 112325.94
A91: 90 | B91: 95444.23 | C91: 113223.42 | D91: 112307.75 | E91: 108883.79 | F91: 107088.45 | G91: 109215.34 | H91: 113482.98 | I91: 107456.47 | J91: 113040.88
A92: 91 | B92: 95770.21 | C92: 113928.63 | D92: 112868.48 | E92: 109442.23 | F92: 107559.72 | G92: 109719.52 | H92: 114124.33 | I92: 107954.83 | J92: 113745.11
A93: 92 | B93: 96081.81 | C93: 114623.1 | D93: 113409.32 | E93: 109985.46 | F93: 108010.11 | G93: 110206.94 | H93: 114752.86 | I93: 108437.36 | J93: 114438.59
A94: 93 | B94: 96378.94 | C94: 115306.79 | D94: 113932.68 | E94: 110513.38 | F94: 108444.8 | G94: 110677.51 | H94: 115368.43 | I94: 108903.9 | J94: 115121.28
A95: 94 | B95: 96661.53 | C95: 115979.64 | D95: 114438.39 | E95: 111025.9 | F95: 108855.22 | G95: 111131.46 | H95: 115971 | I95: 109354.33 | J95: 115793.13
A96: 95 | B96: 96929.5 | C96: 116641.63 | D96: 114919.18 | E96: 111522.91 | F96: 109251.14 | G96: 111568.69 | H96: 116560.48 | I96: 109787.23 | J96: 116454.11
A97: 96 | B97: 97182.77 | C97: 117292.7 | D97: 115377.86 | E97: 112004.42 | F97: 109634.14 | G97: 111989.17 | H97: 117136.73 | I97: 110202.54 | J97: 117104.17
A98: 97 | B98: 97421.26 | C98: 117932.82 | D98: 115821.07 | E98: 112470.47 | F98: 110002.18 | G98: 112392.84 | H98: 117698.72 | I98: 110600.92 | J98: 117743.27
A99: 98 | B99: 97644.89 | C99: 118561.94 | D99: 116244.13 | E99: 112920.92 | F99: 110355.19 | G99: 112779.6 | H99: 118246.37 | I99: 110982.25 | J99: 118371.37
A100: 99 | B100: 97853.59 | C100: 119180.03 | D100: 116651.73 | E100: 113355.71 | F100: 110693.06 | G100: 113149.41 | H100: 118779.6 | I100: 111348.13 | J100: 118988.43
A101: 100 | B101: 98047.27 | C101: 119787.03 | D101: 117047.89 | E101: 113774.68 | F101: 111012.21 | G101: 113502.2 | H101: 119298.3 | I101: 111699.52 | J101: 119594.39
A102: 101 | B102: 98226.04 | C102: 120382.91 | D102: 117430.3 | E102: 114177.76 | F102: 111319.2 | G102: 113837.93 | H102: 119802.39 | I102: 112036.34 | J102: 120189.23
A103: 102 | B103: 98390.77 | C103: 120967.63 | D103: 117797.99 | E103: 114564.82 | F103: 111612.56 | G103: 114156.54 | H103: 120291.79 | I103: 112358.5 | J103: 120772.9
A104: 103 | B104: 98541.39 | C104: 121541.15 | D104: 118150.88 | E104: 114935.76 | F104: 111884.27 | G104: 114458 | H104: 120766.55 | I104: 112668.81 | J104: 121345.37
A105: 104 | B105: 98678.59 | C105: 122098.56 | D105: 118482.8 | E105: 115290.46 | F105: 112141.29 | G105: 114742.27 | H105: 121226.81 | I105: 112968.13 | J105: 121900.82
A106: 105 | B106: 98802.71 | C106: 122631.55 | D106: 118792.68 | E106: 115628.82 | F106: 112375.48 | G106: 115009.31 | H106: 121672.28 | I106: 113256.4 | J106: 122431.83
A107: 106 | B107: 98913.7 | C107: 123139.87 | D107: 119077.68 | E107: 115950.7 | F107: 112597.01 | G107: 115259.09 | H107: 122101.79 | I107: 113533.57 | J107: 122938.15
A108: 107 | B108: 99011.49 | C108: 123623.27 | D108: 119343.76 | E108: 116255.99 | F108: 112802.58 | G108: 115491.61 | H108: 122514.22 | I108: 113799.61 | J108: 123419.53
A109: 108 | B109: 99096.03 | C109: 124081.5 | D109: 119596.07 | E109: 116544.42 | F109: 112992.11 | G109: 115706.85 | H109: 122909.47 | I109: 114049.41 | J109: 123875.73
A110: 109 | B110: 99167.26 | C110: 124514.32 | D110: 119832.75 | E110: 116814.37 | F110: 113165.5 | G110: 115904.82 | H110: 123287.4 | I110: 114279.62 | J110: 124306.49
A111: 110 | B111: 99225.1 | C111: 124921.46 | D111: 120054.61 | E111: 117065.47 | F111: 113319.09 | G111: 116085.54 | H111: 123647.9 | I111: 114490.1 | J111: 124711.55
A112: 111 | B112: 99271.39 | C112: 125302.67 | D112: 120254.44 | E112: 117297.59 | F112: 113457.23 | G112: 116249.01 | H112: 123990.82 | I112: 114680.71 | J112: 125090.67
A113: 112 | B113: 99306.12 | C113: 125657.7 | D113: 120441.58 | E113: 117510.6 | F113: 113580.73 | G113: 116395.31 | H113: 124313.96 | I113: 114851.29 | J113: 125443.58
A114: 113 | B114: 99329.25 | C114: 125986.28 | D114: 120612.74 | E114: 117704.33 | F114: 113681.58 | G114: 116524.49 | H114: 124616.99 | I114: 115001.72 | J114: 125770.02
A115: 114 | B115: 99340.74 | C115: 126288.14 | D115: 120767.81 | E115: 117878.5 | F115: 113769.79 | G115: 116636.63 | H115: 124899.74 | I115: 115127.38 | J115: 126069.72
A116: 115 | B116: 99342.27 | C116: 126563.02 | D116: 120903.12 | E116: 118031.4 | F116: 113842.75 | G116: 116731.86 | H116: 125160.74 | I116: 115228.31 | J116: 126342.42
A117: 116 | B117: 99342.27 | C117: 126810.65 | D117: 121023.05 | E117: 118162.85 | F117: 113901.71 | G117: 116810.33 | H117: 125394.35 | I117: 115305.16 | J117: 126587.84
A118: 117 | B118: 99342.27 | C118: 127030.76 | D118: 121126.59 | E118: 118272.05 | F118: 113944.98 | G118: 116872.24 | H118: 125600.3 | I118: 115357.72 | J118: 126805.72
A119: 118 | B119: 99342.27 | C119: 127223.07 | D119: 121207.28 | E119: 118357.11 | F119: 113971.07 | G119: 116918.33 | H119: 125778.31 | I119: 115390.95 | J119: 126995.78
A120: 119 | B120: 99342.27 | C120: 127387.3 | D120: 121276.91 | E120: 118417.8 | F120: 113983.53 | G120: 116949.01 | H120: 125928.1 | I120: 115409.38 | J120: 127157.74
A121: 120 | B121: 99342.27 | C121: 127523.17 | D121: 121322.47 | E121: 118453.9 | F121: 113984.69 | G121: 116964.37 | H121: 126049.38 | I121: 115413.94 | J121: 127291.32
A122: 121 | B122: 99342.27 | C122: 127630.4 | D122: 121345.18 | E122: 118465.19 | F122: 113984.69 | G122: 116964.99 | H122: 126141.88 | I122: 115413.94 | J122: 127396.23
A123: 122 | B123: 99342.27 | C123: 127708.7 | D123: 121354.09 | E123: 118465.19 | F123: 113984.69 | G123: 116964.99 | H123: 126205.3 | I123: 115413.94 | J123: 127472.19
A124: 123 | B124: 99342.27 | C124: 127757.79 | D124: 121354.09 | E124: 118465.19 | F124: 113984.69 | G124: 116964.99 | H124: 126239.36 | I124: 115413.94 | J124: 127518.91
A125: 124 | B125: 99342.27 | C125: 127777.37 | D125: 121354.09 | E125: 118465.19 | F125: 113984.69 | G125: 116964.99 | H125: 126243.76 | I125: 115413.94 | J125: 127536.1

Sheet Utilities (hidden)
A1: 1 | B1: 2 | C1: 3 | D1: 4 | E1: 5 | F1: 6 | G1: 7 | H1: 8 | I1: 9 | J1: 10 | K1: 11 | L1: 12 | M1: 13 | N1: 14 | O1: 15 | P1: 16 | Q1: 17 | R1: 18 | S1: 19 | T1: 20 | U1: 21
I2: Warning! You cannot insert any rows or columns on this sheet. The code is written with cell row and column numbers and not with range names.
F3: Practice Data Set | N3: User Data Set For Baseline
C4: Show the introduction | D4: FALSE | E4: Loan Names | F4: Loan Number | G4: Start Balance | H4: Annual Rate | I4: MinPmt | J4: IsIntOnly | N4: Loan Number | O4: Start Balance | P4: Annual Rate | Q4: MinPmt | R4: IsIntOnly
E5: Kwik Trip Credit Card | F5: 1 | G5: 4000 | H5: 0.25 | I5: 117.4 | J5: FALSE | N5: 1 | O5: 4000 | P5: 0.25 | Q5: 117.4 | R5: FALSE
E6: George's Chase Credit Card | F6: 2 | G6: 12000 | H6: 0.2 | I6: 250 | J6: FALSE | N6: 2 | O6: 12000 | P6: 0.2 | Q6: 250 | R6: FALSE
E7: Advance From Helen's Parents | F7: 3 | G7: 2000 | H7: 0.15 | I7: 50 | J7: FALSE | N7: 3 | O7: 2000 | P7: 0.15 | Q7: 50 | R7: FALSE
E8: Helen's Macey's Credit Card | F8: 4 | G8: 15000 | H8: 0.125 | I8: 250 | J8: FALSE | N8: 4 | O8: 15000 | P8: 0.125 | Q8: 250 | R8: FALSE
A9: Total min Pmt | B9: =SUM(I5:I64) -> 2258.32 | E9: American Express Credit Card | F9: 5 | G9: 30000 | H9: 0.12 | I9: 150 | J9: FALSE | N9: 5 | O9: 30000 | P9: 0.12 | Q9: 150 | R9: FALSE
E10: Helen's Beauford Loan | F10: 6 | G10: 12500 | H10: 0.105 | I10: 150 | J10: FALSE | N10: 6 | O10: 12500 | P10: 0.105 | Q10: 150 | R10: FALSE
E11: Auto Loan with GM | F11: 7 | G11: 8000 | H11: 0.1 | I11: 66.67 | J11: TRUE | N11: 7 | O11: 8000 | P11: 0.1 | Q11: 66.67 | R11: TRUE
E12: M&I Bank Loan | F12: 8 | G12: 10000 | H12: 0.09 | I12: 80 | J12: FALSE | N12: 8 | O12: 10000 | P12: 0.09 | Q12: 80 | R12: FALSE
E13: Helen's Stafford #1 | F13: 9 | G13: 15000 | H13: 0.085 | I13: 106.25 | J13: TRUE | N13: 9 | O13: 15000 | P13: 0.085 | Q13: 106.25 | R13: TRUE
E14: Helen's Stafford #2 | F14: 10 | G14: 11000 | H14: 0.08 | I14: 223 | J14: FALSE | N14: 10 | O14: 11000 | P14: 0.08 | Q14: 223 | R14: FALSE
E15: Advance From Uncle George's Retirement Account | F15: 11 | G15: 8500 | H15: 0.075 | I15: 170 | J15: FALSE | N15: 11 | O15: 8500 | P15: 0.075 | Q15: 170 | R15: FALSE
E16: Home Improvement Loan | F16: 12 | G16: 3000 | H16: 0.07 | I16: 100 | J16: FALSE | N16: 12 | O16: 3000 | P16: 0.07 | Q16: 100 | R16: FALSE
E17: George's Stafford #2 | F17: 13 | G17: 17000 | H17: 0.065 | I17: 80 | J17: FALSE | N17: 13 | O17: 17000 | P17: 0.065 | Q17: 80 | R17: FALSE
E18: George's Sofi Refinance | F18: 14 | G18: 25000 | H18: 0.065 | I18: 100 | J18: FALSE | N18: 14 | O18: 25000 | P18: 0.065 | Q18: 100 | R18: FALSE
E19: Helen's Staford #3 | F19: 15 | G19: 22000 | H19: 0.065 | I19: 100 | J19: FALSE | N19: 15 | O19: 22000 | P19: 0.065 | Q19: 100 | R19: FALSE
E20: Loan from Helen's Uncle Fred | F20: 16 | G20: 7000 | H20: 0.06 | I20: 35 | J20: TRUE | N20: 16 | O20: 7000 | P20: 0.06 | Q20: 35 | R20: TRUE
E21: Personal loan form George's uncle | F21: 17 | G21: 1200 | H21: 0.06 | I21: 20 | J21: FALSE | N21: 17 | O21: 1200 | P21: 0.06 | Q21: 20 | R21: FALSE
E22: George's Stafford #1 | F22: 18 | G22: 20000 | H22: 0.055 | I22: 100 | J22: FALSE | N22: 18 | O22: 20000 | P22: 0.055 | Q22: 100 | R22: FALSE
E23: Advance From George's Parents | F23: 19 | G23: 16500 | H23: 0.047 | I23: 90 | J23: FALSE | N23: 19 | O23: 16500 | P23: 0.047 | Q23: 90 | R23: FALSE
E24: Loan From George's Brother | F24: 20 | G24: 3500 | H24: 0.034 | I24: 20 | J24: FALSE | N24: 20 | O24: 3500 | P24: 0.034 | Q24: 20 | R24: FALSE
F25: 21 | J25: FALSE | N25: 21 | R25: FALSE
F26: 22 | J26: FALSE | N26: 22 | R26: FALSE
F27: 23 | J27: FALSE | N27: 23 | R27: FALSE
F28: 24 | J28: FALSE | N28: 24 | R28: FALSE
F29: 25 | J29: FALSE | N29: 25 | R29: FALSE
F30: 26 | J30: FALSE | N30: 26 | R30: FALSE
F31: 27 | J31: FALSE | N31: 27 | R31: FALSE
F32: 28 | J32: FALSE | N32: 28 | R32: FALSE
F33: 29 | J33: FALSE | N33: 29 | R33: FALSE
F34: 30 | J34: FALSE | N34: 30 | R34: FALSE
F35: 31 | J35: FALSE | N35: 31 | R35: FALSE
F36: 32 | J36: FALSE | N36: 32 | R36: FALSE
F37: 33 | J37: FALSE | N37: 33 | R37: FALSE
F38: 34 | J38: FALSE | N38: 34 | R38: FALSE
F39: 35 | J39: FALSE | N39: 35 | R39: FALSE
F40: 36 | J40: FALSE | N40: 36 | R40: FALSE
F41: 37 | J41: FALSE | N41: 37 | R41: FALSE
F42: 38 | J42: FALSE | N42: 38 | R42: FALSE
F43: 39 | J43: FALSE | N43: 39 | R43: FALSE
F44: 40 | J44: FALSE | N44: 40 | R44: FALSE
F45: 41 | J45: FALSE | N45: 41 | R45: FALSE
F46: 42 | J46: FALSE | N46: 42 | R46: FALSE
F47: 43 | J47: FALSE | N47: 43 | R47: FALSE
F48: 44 | J48: FALSE | N48: 44 | R48: FALSE
F49: 45 | J49: FALSE | N49: 45 | R49: FALSE
F50: 46 | J50: FALSE | N50: 46 | R50: FALSE
F51: 47 | J51: FALSE | N51: 47 | R51: FALSE
F52: 48 | J52: FALSE | N52: 48 | R52: FALSE
F53: 49 | J53: FALSE | N53: 49 | R53: FALSE
F54: 50 | J54: FALSE | N54: 50 | R54: FALSE
F55: 51 | J55: FALSE | N55: 51 | R55: FALSE
F56: 52 | J56: FALSE | N56: 52 | R56: FALSE
F57: 53 | J57: FALSE | N57: 53 | R57: FALSE
F58: 54 | J58: FALSE | N58: 54 | R58: FALSE
F59: 55 | J59: FALSE | N59: 55 | R59: FALSE
F60: 56 | J60: FALSE | N60: 56 | R60: FALSE
F61: 57 | J61: FALSE | N61: 57 | R61: FALSE
F62: 58 | J62: FALSE | N62: 58 | R62: FALSE
F63: 59 | J63: FALSE | N63: 59 | R63: FALSE
F64: 60 | J64: FALSE | N64: 60 | R64: FALSE
F65: MaxTotalPmt1 | G65: 3000 | N65: MaxTotalPmt1 | O65: 3000
F66: MaxTotalPmt2 | N66: MaxTotalPmt2
F67: MaxTotalPmt3 | N67: MaxTotalPmt3
F68: StartMo2 | N68: StartMo2
F69: StartMo3 | N69: StartMo3

Sheet Additional Info (hidden)
C1: Is Practice Data Showing | D1: TRUE | F1: Kwik Trip has insisted on a 5 year payoff and they wil no longer honor this card. The minimum payment is what is required to pay off in 5 years. Talk to sue in the corproate offices
F3: I want this loan paid off in less than 5 years. The current minimum payment was selected to give a little over 4 and one half years.
F16: My uncle is OK with my just paying the interest until our financial situation improves. If things got really bad we might even be able to pay nothing and just let it accumulate interest. I am sure Uncle Fred would not think that is a smart move.
F17: Since this is a very small loan, my uncle might let us pay only interest for a awhile.
F18: My advisor at Navient has told me that he is willing to put this loan in payment defered status. I will not make any payments while it is on defered status, but it will acrue interest. I just don't like this so I am going to pay just a little over the interest.
F19: My parents are not concerned about how long it takes to pay this back. In order to be paying somethingl, I have agreeded to pay $90 per month. This would take around 27 years to pay off.
F20: My brother is not concerned about length of time for pay back. I want to pay something so I am paying 20 dollars per month.
F21: new test data
